Workbook

Sheet TC_A2 bis Druckminderer
C2: Temperatur | E2: 338 | G2: Normdichte | H2: 0.08988
C3: Massenstrom | E3: =17.64*8 -> 141.12 | G3: Startdruck | H3: 20.00
C4: Rauigeit (mm) | E4: 4.00E-02
C5: Innendurchmesser (mm) | E5: 0.019
C7: Rohr oder Ventil | D7: Länge Rohrleitung | E7: Innendruchmesser Rohr | F7: Rauigkeit | G7: Massenstrom H2 | H7: Massenstrom H2 | I7: Volumenstrom H2 | J7: Druck | K7: Temperatur | L7: Dichte | M7: dynamische Viskosität | N7: kinematische Viskosität | O7: Norm Dichte | P7: Norm Volumenstrom | Q7: Geschwindigkeit | R7: Mach-Zahl | S7: RE-Zahl | T7: k/d | U7: Rohrreibungszahl | V7: Kv-Wert | W7: Widerstandsbeiwert Zeta | X7: Durckverlust durch Komponente | Y7: Durckverlust durch Komponente | Z7: p_1 | AA7: p_2 | AB7: Delta p | AC7: Delta P aufsummiert
A9: System | B9: Komponente | C9: [-] | D9: [m] | E9: [m]2 | F9: [m]3 | G9: [kg/h] | H9: [kg/s] | I9: [m^3/s] | J9: [Pa] | K9: [K] | L9: [kg/m^3] | M9: [Pa*s] | N9: [m^2/s] | O9: [kg/m^3] | P9: [Nm^3/h] | Q9: [m/s] | R9: [-] | S9: [-] | T9: [-] | U9: [-] | V9: [m^3/h] | W9: [-] | X9: [Pa] | Y9: [bar] | Z9: [bar] | AA9: [bar] | AB9: [Pa] | AC9: [Pa]
B10: H2 Kupplung | C10: Ventil | E10: =IF(ISTEXT(E9),$E$5,E9) -> 0.019 | F10: =IF(ISTEXT(F9),E4*0.001,F9) -> 4.00E-05 | G10: =17.64*8 -> 141.12 | H10: =G10/3600 -> 0.0392 | I10: =H10/L10 -> 2.76E-02 | J10: =IF(ISTEXT(AA9),$H$3*100000,AA9*100000) -> 2000000 | K10: =IF(ISTEXT(K9),E2,K9) -> 338 | L10: =Dichte(K10,J10) -> 1.41924 | M10: =VLOOKUP(J10*0.00001,'Datenbak Werte'!$A$1:$B$500,2,TRUE)*0.000001 -> 9.72E-06 | N10: =M10/L10 -> 6.85E-06 | O10: =IF(ISTEXT(O9),H2,O9) -> 8.99E-02 | P10: =Tabelle7[[#This Row],['[kg/h']]]/Tabelle7[[#This Row],['[kg/m^3']4]] -> 1570.09 | Q10: =H10*4/(L10*PI()*E10^2) -> 97.42 | R10: =Tabelle7[[#This Row],['[m/s']]]/VLOOKUP(J10*0.00001,'Datenbak Werte'!$A$1:$C$500,3,TRUE) -> 0.07 | S10: =(L10*Q10*E10)/M10 -> 2.7037E+05 | T10: =F10/E10 -> 2.1E-03 | U10: =Rohrreibungszahl(Tabelle7[[#This Row],['[-']]],Tabelle7[[#This Row],['[-']4]],Tabelle7[[#This Row],['[-']3]],Tabelle7[[#This Row],['[m']2]],Tabelle7[[#This Row],['[m']3]]) -> Nur bei 'Rohr' benötigt | V10: 3.53 | X10: =IF(Tabelle7[[#This Row],['[-']2]]>0,Tabelle7[[#This Row],['[-']2]]*(Tabelle7[[#This Row],['[kg/m^3']]]/2)*Tabelle7[[#This Row],['[m/s']]]^2,Druckverlust(Tabelle7[[#This Row],[Spalte1]],C10,U10,V10,P10,L10,O10,J10,K10,Q10,D10,E10)) -> 121072.38 | Y10: =X10/10^5 -> 1.210723779 | Z10: =J10/10^5 -> 20.00 | AA10: =Z10-Y10 -> 18.79 | AB10: =X10 -> 121072.38 | AC10: =SUM($AB$10:AB10) -> 121072.38
B11: Schlauch | C11: Rohr | D11: 1 | E11: =IF(ISTEXT(E10),$E$5,E10) -> 0.019 | F11: 4.00E-05 | G11: 141.12 | H11: =G11/3600 -> 0.0392 | I11: =H11/L11 -> 2.94E-02 | J11: =IF(ISTEXT(AA10),$H$3*100000,AA10*100000) -> 1878927.622 | K11: =IF(ISTEXT(K10),E3,K10) -> 338 | L11: =Dichte(K11,J11) -> 1.33419 | M11: =VLOOKUP(J11*0.00001,'Datenbak Werte'!$A$1:$B$500,2,TRUE)*0.000001 -> 9.71E-06 | N11: =M11/L11 -> 7.28E-06 | O11: =IF(ISTEXT(O10),H3,O10) -> 8.99E-02 | P11: =Tabelle7[[#This Row],['[kg/h']]]/Tabelle7[[#This Row],['[kg/m^3']4]] -> 1570.09 | Q11: =H11*4/(L11*PI()*E11^2) -> 103.63 | R11: =Tabelle7[[#This Row],['[m/s']]]/VLOOKUP(J11*0.00001,'Datenbak Werte'!$A$1:$C$500,3,TRUE) -> 0.07 | S11: =(L11*Q11*E11)/M11 -> 2.7040E+05 | T11: =F11/E11 -> 2.1E-03 | U11: =Rohrreibungszahl(Tabelle7[[#This Row],['[-']]],Tabelle7[[#This Row],['[-']4]],Tabelle7[[#This Row],['[-']3]],Tabelle7[[#This Row],['[m']2]],Tabelle7[[#This Row],['[m']3]]) -> 2.44E-02 | X11: =IF(Tabelle7[[#This Row],['[-']2]]>0,Tabelle7[[#This Row],['[-']2]]*(Tabelle7[[#This Row],['[kg/m^3']]]/2)*Tabelle7[[#This Row],['[m/s']]]^2,Druckverlust(Tabelle7[[#This Row],[Spalte1]],C11,U11,V11,P11,L11,O11,J11,K11,Q11,D11,E11)) -> 9184.33 | Y11: 0.09184325522 | Z11: =J11/10^5 -> 18.79 | AA11: =Z11-Y11 -> 18.70 | AB11: =X11 -> 9184.33 | AC11: =SUM($AB$10:AB11) -> 130256.70
B12: 90°Winkel | C12: Rohr | E12: 0.019 | F12: 4.00E-05 | G12: 141.12 | H12: 0.0392 | I12: 2.95E-02 | J12: 1869743.297 | K12: 338 | L12: =Dichte(K12,J12) -> 1.32774 | M12: =VLOOKUP(J12*0.00001,'Datenbak Werte'!$A$1:$B$500,2,TRUE)*0.000001 -> 9.71E-06 | N12: 7.32E-06 | O12: 8.99E-02 | P12: =Tabelle7[[#This Row],['[kg/h']]]/Tabelle7[[#This Row],['[kg/m^3']4]] -> 1570.09 | Q12: 104.13 | R12: =Tabelle7[[#This Row],['[m/s']]]/VLOOKUP(J12*0.00001,'Datenbak Werte'!$A$1:$C$500,3,TRUE) -> 0.07 | S12: 2.7040E+05 | T12: 2.1E-03 | U12: =Rohrreibungszahl(Tabelle7[[#This Row],['[-']]],Tabelle7[[#This Row],['[-']4]],Tabelle7[[#This Row],['[-']3]],Tabelle7[[#This Row],['[m']2]],Tabelle7[[#This Row],['[m']3]]) -> 2.44E-02 | W12: 0.15 | X12: =IF(Tabelle7[[#This Row],['[-']2]]>0,Tabelle7[[#This Row],['[-']2]]*(Tabelle7[[#This Row],['[kg/m^3']]]/2)*Tabelle7[[#This Row],['[m/s']]]^2,Druckverlust(Tabelle7[[#This Row],[Spalte1]],C12,U12,V12,P12,L12,O12,J12,K12,Q12,D12,E12)) -> 1079.76 | Y12: 0.01079760472 | Z12: =J12/10^5 -> 18.70 | AA12: =Z12-Y12 -> 18.69 | AB12: =X12 -> 1079.76 | AC12: =SUM($AB$10:AB12) -> 131336.46
B13: Rohr | C13: Rohr | D13: 4.8 | E13: 0.019 | F13: 4.00E-05 | G13: 141.12 | H13: 0.0392 | I13: 2.95E-02 | J13: 1868663.536 | K13: 338 | L13: =Dichte(K13,J13) -> 1.32698 | M13: =VLOOKUP(J13*0.00001,'Datenbak Werte'!$A$1:$B$500,2,TRUE)*0.000001 -> 9.71E-06 | N13: 7.32E-06 | O13: 8.99E-02 | P13: =Tabelle7[[#This Row],['[kg/h']]]/Tabelle7[[#This Row],['[kg/m^3']4]] -> 1570.09 | Q13: 104.19 | R13: =Tabelle7[[#This Row],['[m/s']]]/VLOOKUP(J13*0.00001,'Datenbak Werte'!$A$1:$C$500,3,TRUE) -> 0.07 | S13: 2.7040E+05 | T13: 2.1E-03 | U13: =Rohrreibungszahl(Tabelle7[[#This Row],['[-']]],Tabelle7[[#This Row],['[-']4]],Tabelle7[[#This Row],['[-']3]],Tabelle7[[#This Row],['[m']2]],Tabelle7[[#This Row],['[m']3]]) -> 2.44E-02 | X13: =IF(Tabelle7[[#This Row],['[-']2]]>0,Tabelle7[[#This Row],['[-']2]]*(Tabelle7[[#This Row],['[kg/m^3']]]/2)*Tabelle7[[#This Row],['[m/s']]]^2,Druckverlust(Tabelle7[[#This Row],[Spalte1]],C13,U13,V13,P13,L13,O13,J13,K13,Q13,D13,E13)) -> 44324.46 | Y13: 0.4432446328 | Z13: 18.69 | AA13: 18.24 | AB13: 44324.46 | AC13: =SUM($AB$10:AB13) -> 175660.93
B14: 90°Winkel | C14: Rohr | E14: 0.019 | F14: 4.00E-05 | G14: 141.12 | H14: 0.0392 | I14: 3.03E-02 | J14: 1824339.073 | K14: 338 | L14: =Dichte(K14,J14) -> 1.29581 | M14: =VLOOKUP(J14*0.00001,'Datenbak Werte'!$A$1:$B$500,2,TRUE)*0.000001 -> 9.71E-06 | N14: 7.50E-06 | O14: 8.99E-02 | P14: =Tabelle7[[#This Row],['[kg/h']]]/Tabelle7[[#This Row],['[kg/m^3']4]] -> 1570.09 | Q14: 106.70 | R14: =Tabelle7[[#This Row],['[m/s']]]/VLOOKUP(J14*0.00001,'Datenbak Werte'!$A$1:$C$500,3,TRUE) -> 0.08 | S14: 2.7040E+05 | T14: 2.1E-03 | U14: =Rohrreibungszahl(Tabelle7[[#This Row],['[-']]],Tabelle7[[#This Row],['[-']4]],Tabelle7[[#This Row],['[-']3]],Tabelle7[[#This Row],['[m']2]],Tabelle7[[#This Row],['[m']3]]) -> 2.44E-02 | W14: 0.15 | X14: =IF(Tabelle7[[#This Row],['[-']2]]>0,Tabelle7[[#This Row],['[-']2]]*(Tabelle7[[#This Row],['[kg/m^3']]]/2)*Tabelle7[[#This Row],['[m/s']]]^2,Druckverlust(Tabelle7[[#This Row],[Spalte1]],C14,U14,V14,P14,L14,O14,J14,K14,Q14,D14,E14)) -> 1106.36 | Y14: 0.0110636353 | Z14: 18.24 | AA14: 18.23 | AB14: 1106.36 | AC14: =SUM($AB$10:AB14) -> 176767.29
B15: Rohr | C15: Rohr | D15: 3 | E15: 0.019 | F15: 4.00E-05 | G15: 141.12 | H15: 0.0392 | I15: 3.03E-02 | J15: 1823232.709 | K15: 338 | L15: =Dichte(K15,J15) -> 1.29503 | M15: =VLOOKUP(J15*0.00001,'Datenbak Werte'!$A$1:$B$500,2,TRUE)*0.000001 -> 9.71E-06 | N15: 7.50E-06 | O15: 8.99E-02 | P15: =Tabelle7[[#This Row],['[kg/h']]]/Tabelle7[[#This Row],['[kg/m^3']4]] -> 1570.09 | Q15: 106.76 | R15: =Tabelle7[[#This Row],['[m/s']]]/VLOOKUP(J15*0.00001,'Datenbak Werte'!$A$1:$C$500,3,TRUE) -> 0.08 | S15: 2.7040E+05 | T15: 2.1E-03 | U15: =Rohrreibungszahl(Tabelle7[[#This Row],['[-']]],Tabelle7[[#This Row],['[-']4]],Tabelle7[[#This Row],['[-']3]],Tabelle7[[#This Row],['[m']2]],Tabelle7[[#This Row],['[m']3]]) -> 2.44E-02 | X15: =IF(Tabelle7[[#This Row],['[-']2]]>0,Tabelle7[[#This Row],['[-']2]]*(Tabelle7[[#This Row],['[kg/m^3']]]/2)*Tabelle7[[#This Row],['[m/s']]]^2,Druckverlust(Tabelle7[[#This Row],[Spalte1]],C15,U15,V15,P15,L15,O15,J15,K15,Q15,D15,E15)) -> 28386.15 | Y15: 0.2838614712 | Z15: 18.23 | AA15: 17.95 | AB15: 28386.15 | AC15: =SUM($AB$10:AB15) -> 205153.44
B16: 90°Winkel | C16: Rohr | E16: 0.019 | F16: 4.00E-05 | G16: 141.12 | H16: 0.0392 | I16: 3.07E-02 | J16: 1794846.562 | K16: 338 | L16: =Dichte(K16,J16) -> 1.27506 | M16: =VLOOKUP(J16*0.00001,'Datenbak Werte'!$A$1:$B$500,2,TRUE)*0.000001 -> 9.71E-06 | N16: 7.62E-06 | O16: 8.99E-02 | P16: =Tabelle7[[#This Row],['[kg/h']]]/Tabelle7[[#This Row],['[kg/m^3']4]] -> 1570.09 | Q16: 108.43 | R16: =Tabelle7[[#This Row],['[m/s']]]/VLOOKUP(J16*0.00001,'Datenbak Werte'!$A$1:$C$500,3,TRUE) -> 0.08 | S16: 2.7042E+05 | T16: 2.1E-03 | U16: =Rohrreibungszahl(Tabelle7[[#This Row],['[-']]],Tabelle7[[#This Row],['[-']4]],Tabelle7[[#This Row],['[-']3]],Tabelle7[[#This Row],['[m']2]],Tabelle7[[#This Row],['[m']3]]) -> 2.44E-02 | W16: 0.15 | X16: =IF(Tabelle7[[#This Row],['[-']2]]>0,Tabelle7[[#This Row],['[-']2]]*(Tabelle7[[#This Row],['[kg/m^3']]]/2)*Tabelle7[[#This Row],['[m/s']]]^2,Druckverlust(Tabelle7[[#This Row],[Spalte1]],C16,U16,V16,P16,L16,O16,J16,K16,Q16,D16,E16)) -> 1124.36 | Y16: 0.01124364754 | Z16: 17.95 | AA16: 17.94 | AB16: 1124.36 | AC16: =SUM($AB$10:AB16) -> 206277.80
B17: Rohr (Durchführung FRP) | C17: Rohr | D17: 1.6 | E17: 0.019 | F17: 4.00E-05 | G17: 141.12 | H17: 0.0392 | I17: 3.08E-02 | J17: 1793722.197 | K17: 338 | L17: =Dichte(K17,J17) -> 1.27427 | M17: =VLOOKUP(J17*0.00001,'Datenbak Werte'!$A$1:$B$500,2,TRUE)*0.000001 -> 9.71E-06 | N17: 7.62E-06 | O17: 8.99E-02 | P17: =Tabelle7[[#This Row],['[kg/h']]]/Tabelle7[[#This Row],['[kg/m^3']4]] -> 1570.09 | Q17: 108.50 | R17: =Tabelle7[[#This Row],['[m/s']]]/VLOOKUP(J17*0.00001,'Datenbak Werte'!$A$1:$C$500,3,TRUE) -> 0.08 | S17: 2.7042E+05 | T17: 2.1E-03 | U17: =Rohrreibungszahl(Tabelle7[[#This Row],['[-']]],Tabelle7[[#This Row],['[-']4]],Tabelle7[[#This Row],['[-']3]],Tabelle7[[#This Row],['[m']2]],Tabelle7[[#This Row],['[m']3]]) -> 2.44E-02 | X17: =IF(Tabelle7[[#This Row],['[-']2]]>0,Tabelle7[[#This Row],['[-']2]]*(Tabelle7[[#This Row],['[kg/m^3']]]/2)*Tabelle7[[#This Row],['[m/s']]]^2,Druckverlust(Tabelle7[[#This Row],[Spalte1]],C17,U17,V17,P17,L17,O17,J17,K17,Q17,D17,E17)) -> 15385.89 | Y17: 0.153858861 | Z17: 17.94 | AA17: 17.78 | AB17: 15385.89 | AC17: =SUM($AB$10:AB17) -> 221663.69
B18: Filter | C18: Ventil | E18: 0.019 | F18: 4.00E-05 | G18: 141.12 | H18: 0.0392 | I18: 3.10E-02 | J18: 1778336.311 | K18: 338 | L18: =Dichte(K18,J18) -> 1.26345 | M18: =VLOOKUP(J18*0.00001,'Datenbak Werte'!$A$1:$B$500,2,TRUE)*0.000001 -> 9.71E-06 | N18: 7.69E-06 | O18: 8.99E-02 | P18: =Tabelle7[[#This Row],['[kg/h']]]/Tabelle7[[#This Row],['[kg/m^3']4]] -> 1570.09 | Q18: 109.43 | R18: =Tabelle7[[#This Row],['[m/s']]]/VLOOKUP(J18*0.00001,'Datenbak Werte'!$A$1:$C$500,3,TRUE) -> 0.08 | S18: 2.7042E+05 | T18: 2.1E-03 | U18: =Rohrreibungszahl(Tabelle7[[#This Row],['[-']]],Tabelle7[[#This Row],['[-']4]],Tabelle7[[#This Row],['[-']3]],Tabelle7[[#This Row],['[m']2]],Tabelle7[[#This Row],['[m']3]]) -> Nur bei 'Rohr' benötigt | V18: 4 | X18: =IF(Tabelle7[[#This Row],['[-']2]]>0,Tabelle7[[#This Row],['[-']2]]*(Tabelle7[[#This Row],['[kg/m^3']]]/2)*Tabelle7[[#This Row],['[m/s']]]^2,Druckverlust(Tabelle7[[#This Row],[Spalte1]],C18,U18,V18,P18,L18,O18,J18,K18,Q18,D18,E18)) -> 105936.19 | Y18: 1.05936193 | Z18: 17.78 | AA18: 16.72 | AB18: 105936.19 | AC18: =SUM($AB$10:AB18) -> 327599.88
B19: Rückschlag-/Absperrventil | C19: Ventil | E19: 0.019 | F19: 4.00E-05 | G19: 141.12 | H19: 0.0392 | I19: 3.30E-02 | J19: 1672400.118 | K19: 338 | L19: =Dichte(K19,J19) -> 1.18886 | M19: =VLOOKUP(J19*0.00001,'Datenbak Werte'!$A$1:$B$500,2,TRUE)*0.000001 -> 9.71E-06 | N19: 8.17E-06 | O19: 8.99E-02 | P19: =Tabelle7[[#This Row],['[kg/h']]]/Tabelle7[[#This Row],['[kg/m^3']4]] -> 1570.09 | Q19: 116.29 | R19: =Tabelle7[[#This Row],['[m/s']]]/VLOOKUP(J19*0.00001,'Datenbak Werte'!$A$1:$C$500,3,TRUE) -> 0.08 | S19: 2.7043E+05 | T19: 2.1E-03 | U19: =Rohrreibungszahl(Tabelle7[[#This Row],['[-']]],Tabelle7[[#This Row],['[-']4]],Tabelle7[[#This Row],['[-']3]],Tabelle7[[#This Row],['[m']2]],Tabelle7[[#This Row],['[m']3]]) -> Nur bei 'Rohr' benötigt | V19: 4 | X19: =IF(Tabelle7[[#This Row],['[-']2]]>0,Tabelle7[[#This Row],['[-']2]]*(Tabelle7[[#This Row],['[kg/m^3']]]/2)*Tabelle7[[#This Row],['[m/s']]]^2,Druckverlust(Tabelle7[[#This Row],[Spalte1]],C19,U19,V19,P19,L19,O19,J19,K19,Q19,D19,E19)) -> 113660.90 | Y19: 1.136608995 | Z19: 16.72 | AA19: 15.59 | AB19: 113660.90 | AC19: =SUM($AB$10:AB19) -> 441260.78
B20: T-Stück (Eingang Sammelrohr) | C20: Rohr | E20: 0.019 | F20: 4.00E-05 | G20: 141.12 | H20: 0.0392 | I20: 3.54E-02 | J20: 1558739.219 | K20: 338 | L20: =Dichte(K20,J20) -> 1.10874 | M20: =VLOOKUP(J20*0.00001,'Datenbak Werte'!$A$1:$B$500,2,TRUE)*0.000001 -> 9.71E-06 | N20: 8.76E-06 | O20: 8.99E-02 | P20: =Tabelle7[[#This Row],['[kg/h']]]/Tabelle7[[#This Row],['[kg/m^3']4]] -> 1570.09 | Q20: 124.70 | R20: =Tabelle7[[#This Row],['[m/s']]]/VLOOKUP(J20*0.00001,'Datenbak Werte'!$A$1:$C$500,3,TRUE) -> 0.09 | S20: 2.7044E+05 | T20: 2.1E-03 | U20: =Rohrreibungszahl(Tabelle7[[#This Row],['[-']]],Tabelle7[[#This Row],['[-']4]],Tabelle7[[#This Row],['[-']3]],Tabelle7[[#This Row],['[m']2]],Tabelle7[[#This Row],['[m']3]]) -> 2.44E-02 | W20: 0.9 | X20: =IF(Tabelle7[[#This Row],['[-']2]]>0,Tabelle7[[#This Row],['[-']2]]*(Tabelle7[[#This Row],['[kg/m^3']]]/2)*Tabelle7[[#This Row],['[m/s']]]^2,Druckverlust(Tabelle7[[#This Row],[Spalte1]],C20,U20,V20,P20,L20,O20,J20,K20,Q20,D20,E20)) -> 7758.20 | Y20: 0.0775819703 | Z20: 15.59 | AA20: 15.51 | AB20: 7758.20 | AC20: =SUM($AB$10:AB20) -> 449018.98
B21: Sammelrohr | C21: Rohr | D21: 0.2 | E21: 0.019 | F21: 4.00E-05 | G21: 141.12 | H21: 0.0392 | I21: 3.55E-02 | J21: 1550981.022 | K21: 338 | L21: =Dichte(K21,J21) -> 1.10327 | M21: =VLOOKUP(J21*0.00001,'Datenbak Werte'!$A$1:$B$500,2,TRUE)*0.000001 -> 9.71E-06 | N21: 8.80E-06 | O21: 8.99E-02 | P21: =Tabelle7[[#This Row],['[kg/h']]]/Tabelle7[[#This Row],['[kg/m^3']4]] -> 1570.09 | Q21: 125.32 | R21: =Tabelle7[[#This Row],['[m/s']]]/VLOOKUP(J21*0.00001,'Datenbak Werte'!$A$1:$C$500,3,TRUE) -> 0.09 | S21: 2.7044E+05 | T21: 2.1E-03 | U21: =Rohrreibungszahl(Tabelle7[[#This Row],['[-']]],Tabelle7[[#This Row],['[-']4]],Tabelle7[[#This Row],['[-']3]],Tabelle7[[#This Row],['[m']2]],Tabelle7[[#This Row],['[m']3]]) -> 2.44E-02 | X21: =IF(Tabelle7[[#This Row],['[-']2]]>0,Tabelle7[[#This Row],['[-']2]]*(Tabelle7[[#This Row],['[kg/m^3']]]/2)*Tabelle7[[#This Row],['[m/s']]]^2,Druckverlust(Tabelle7[[#This Row],[Spalte1]],C21,U21,V21,P21,L21,O21,J21,K21,Q21,D21,E21)) -> 2221.33 | Y21: 0.0222132983 | Z21: 15.51 | AA21: 15.49 | AB21: 2221.33 | AC21: =SUM($AB$10:AB21) -> 451240.31
B22: T-Stück (zum TC) | C22: Rohr | E22: 0.019 | F22: 4.00E-05 | G22: 141.12 | H22: 0.0392 | I22: 3.56E-02 | J22: 1548759.692 | K22: 338 | L22: =Dichte(K22,J22) -> 1.10170 | M22: =VLOOKUP(J22*0.00001,'Datenbak Werte'!$A$1:$B$500,2,TRUE)*0.000001 -> 9.71E-06 | N22: 8.82E-06 | O22: 8.99E-02 | P22: =Tabelle7[[#This Row],['[kg/h']]]/Tabelle7[[#This Row],['[kg/m^3']4]] -> 1570.09 | Q22: 125.49 | R22: =Tabelle7[[#This Row],['[m/s']]]/VLOOKUP(J22*0.00001,'Datenbak Werte'!$A$1:$C$500,3,TRUE) -> 0.09 | S22: 2.7044E+05 | T22: 2.1E-03 | U22: =Rohrreibungszahl(Tabelle7[[#This Row],['[-']]],Tabelle7[[#This Row],['[-']4]],Tabelle7[[#This Row],['[-']3]],Tabelle7[[#This Row],['[m']2]],Tabelle7[[#This Row],['[m']3]]) -> 2.44E-02 | W22: 0.05 | X22: =IF(Tabelle7[[#This Row],['[-']2]]>0,Tabelle7[[#This Row],['[-']2]]*(Tabelle7[[#This Row],['[kg/m^3']]]/2)*Tabelle7[[#This Row],['[m/s']]]^2,Druckverlust(Tabelle7[[#This Row],[Spalte1]],C22,U22,V22,P22,L22,O22,J22,K22,Q22,D22,E22)) -> 433.76 | Y22: 0.004337648969 | Z22: 15.49 | AA22: 15.48 | AB22: 433.76 | AC22: =SUM($AB$10:AB22) -> 451674.07
B23: Sammelrohr | C23: Rohr | D23: 0.1 | E23: 0.019 | F23: 4.00E-05 | G23: 141.12 | H23: 0.0392 | I23: 3.56E-02 | J23: 1548325.927 | K23: 338 | L23: =Dichte(K23,J23) -> 1.10139 | M23: =VLOOKUP(J23*0.00001,'Datenbak Werte'!$A$1:$B$500,2,TRUE)*0.000001 -> 9.71E-06 | N23: 8.82E-06 | O23: 8.99E-02 | P23: =Tabelle7[[#This Row],['[kg/h']]]/Tabelle7[[#This Row],['[kg/m^3']4]] -> 1570.09 | Q23: 125.53 | R23: =Tabelle7[[#This Row],['[m/s']]]/VLOOKUP(J23*0.00001,'Datenbak Werte'!$A$1:$C$500,3,TRUE) -> 0.09 | S23: 2.7044E+05 | T23: 2.1E-03 | U23: =Rohrreibungszahl(Tabelle7[[#This Row],['[-']]],Tabelle7[[#This Row],['[-']4]],Tabelle7[[#This Row],['[-']3]],Tabelle7[[#This Row],['[m']2]],Tabelle7[[#This Row],['[m']3]]) -> 2.44E-02 | X23: =IF(Tabelle7[[#This Row],['[-']2]]>0,Tabelle7[[#This Row],['[-']2]]*(Tabelle7[[#This Row],['[kg/m^3']]]/2)*Tabelle7[[#This Row],['[m/s']]]^2,Druckverlust(Tabelle7[[#This Row],[Spalte1]],C23,U23,V23,P23,L23,O23,J23,K23,Q23,D23,E23)) -> 1112.55 | Y23: 0.01112553606 | Z23: =J23/10^5 -> 15.48 | AA23: =Z23-Y23 -> 15.47 | AB23: =X23 -> 1112.55 | AC23: =SUM($AB$10:AB23) -> 452786.63
B24: T-Stück (Ausgang Sammelrohr) | C24: Rohr | E24: 0.019 | F24: 4.00E-05 | G24: 141.12 | H24: 0.0392 | I24: 3.56E-02 | J24: 1547213.373 | K24: 338 | L24: =Dichte(K24,J24) -> 1.10061 | M24: =VLOOKUP(J24*0.00001,'Datenbak Werte'!$A$1:$B$500,2,TRUE)*0.000001 -> 9.71E-06 | N24: 8.83E-06 | O24: 8.99E-02 | P24: =Tabelle7[[#This Row],['[kg/h']]]/Tabelle7[[#This Row],['[kg/m^3']4]] -> 1570.09 | Q24: 125.62 | R24: =Tabelle7[[#This Row],['[m/s']]]/VLOOKUP(J24*0.00001,'Datenbak Werte'!$A$1:$C$500,3,TRUE) -> 0.09 | S24: 2.7044E+05 | T24: 2.1E-03 | U24: =Rohrreibungszahl(Tabelle7[[#This Row],['[-']]],Tabelle7[[#This Row],['[-']4]],Tabelle7[[#This Row],['[-']3]],Tabelle7[[#This Row],['[m']2]],Tabelle7[[#This Row],['[m']3]]) -> 2.44E-02 | W24: 0.05 | X24: =IF(Tabelle7[[#This Row],['[-']2]]>0,Tabelle7[[#This Row],['[-']2]]*(Tabelle7[[#This Row],['[kg/m^3']]]/2)*Tabelle7[[#This Row],['[m/s']]]^2,Druckverlust(Tabelle7[[#This Row],[Spalte1]],C24,U24,V24,P24,L24,O24,J24,K24,Q24,D24,E24)) -> 434.19 | Y24: 0.00434194798 | Z24: =J24/10^5 -> 15.47 | AA24: =Z24-Y24 -> 15.47 | AB24: =X24 -> 434.19 | AC24: =SUM($AB$10:AB24) -> 453220.82
B25: Sammelrohr | C25: Rohr | D25: 0.1 | E25: 0.019 | F25: 4.00E-05 | G25: 141.12 | H25: 0.0392 | I25: 3.56E-02 | J25: 1546779.179 | K25: 338 | L25: =Dichte(K25,J25) -> 1.10030 | M25: =VLOOKUP(J25*0.00001,'Datenbak Werte'!$A$1:$B$500,2,TRUE)*0.000001 -> 9.71E-06 | N25: 8.83E-06 | O25: 8.99E-02 | P25: =Tabelle7[[#This Row],['[kg/h']]]/Tabelle7[[#This Row],['[kg/m^3']4]] -> 1570.09 | Q25: 125.65 | R25: =Tabelle7[[#This Row],['[m/s']]]/VLOOKUP(J25*0.00001,'Datenbak Werte'!$A$1:$C$500,3,TRUE) -> 0.09 | S25: 2.7044E+05 | T25: 2.1E-03 | U25: =Rohrreibungszahl(Tabelle7[[#This Row],['[-']]],Tabelle7[[#This Row],['[-']4]],Tabelle7[[#This Row],['[-']3]],Tabelle7[[#This Row],['[m']2]],Tabelle7[[#This Row],['[m']3]]) -> 2.44E-02 | X25: =IF(Tabelle7[[#This Row],['[-']2]]>0,Tabelle7[[#This Row],['[-']2]]*(Tabelle7[[#This Row],['[kg/m^3']]]/2)*Tabelle7[[#This Row],['[m/s']]]^2,Druckverlust(Tabelle7[[#This Row],[Spalte1]],C25,U25,V25,P25,L25,O25,J25,K25,Q25,D25,E25)) -> 1113.66 | Y25: 0.01113656868 | Z25: =J25/10^5 -> 15.47 | AA25: =Z25-Y25 -> 15.46 | AB25: =X25 -> 1113.66 | AC25: =SUM($AB$10:AB25) -> 454334.48
B26: T-Stück (zum TC) | C26: Rohr | E26: 0.019 | F26: 4.00E-05 | G26: 141.12 | H26: 0.0392 | I26: 3.57E-02 | J26: 1545665.522 | K26: 338 | L26: =Dichte(K26,J26) -> 1.09952 | M26: =VLOOKUP(J26*0.00001,'Datenbak Werte'!$A$1:$B$500,2,TRUE)*0.000001 -> 9.71E-06 | N26: 8.83E-06 | O26: 8.99E-02 | P26: =Tabelle7[[#This Row],['[kg/h']]]/Tabelle7[[#This Row],['[kg/m^3']4]] -> 1570.09 | Q26: 125.74 | R26: =Tabelle7[[#This Row],['[m/s']]]/VLOOKUP(J26*0.00001,'Datenbak Werte'!$A$1:$C$500,3,TRUE) -> 0.09 | S26: 2.7044E+05 | T26: 2.1E-03 | U26: =Rohrreibungszahl(Tabelle7[[#This Row],['[-']]],Tabelle7[[#This Row],['[-']4]],Tabelle7[[#This Row],['[-']3]],Tabelle7[[#This Row],['[m']2]],Tabelle7[[#This Row],['[m']3]]) -> 2.44E-02 | W26: 0.05 | X26: =IF(Tabelle7[[#This Row],['[-']2]]>0,Tabelle7[[#This Row],['[-']2]]*(Tabelle7[[#This Row],['[kg/m^3']]]/2)*Tabelle7[[#This Row],['[m/s']]]^2,Druckverlust(Tabelle7[[#This Row],[Spalte1]],C26,U26,V26,P26,L26,O26,J26,K26,Q26,D26,E26)) -> 434.63 | Y26: 0.004346259867 | Z26: =J26/10^5 -> 15.46 | AA26: =Z26-Y26 -> 15.45 | AB26: =X26 -> 434.63 | AC26: =SUM($AB$10:AB26) -> 454769.10
B27: Sammelrohr | C27: Rohr | D27: 0.2 | E27: 0.019 | F27: 4.00E-05 | G27: 141.12 | H27: 0.0392 | I27: 3.57E-02 | J27: 1545230.896 | K27: 338 | L27: =Dichte(K27,J27) -> 1.09921 | M27: =VLOOKUP(J27*0.00001,'Datenbak Werte'!$A$1:$B$500,2,TRUE)*0.000001 -> 9.71E-06 | N27: 8.84E-06 | O27: 8.99E-02 | P27: =Tabelle7[[#This Row],['[kg/h']]]/Tabelle7[[#This Row],['[kg/m^3']4]] -> 1570.09 | Q27: 125.78 | R27: =Tabelle7[[#This Row],['[m/s']]]/VLOOKUP(J27*0.00001,'Datenbak Werte'!$A$1:$C$500,3,TRUE) -> 0.09 | S27: 2.7044E+05 | T27: 2.1E-03 | U27: =Rohrreibungszahl(Tabelle7[[#This Row],['[-']]],Tabelle7[[#This Row],['[-']4]],Tabelle7[[#This Row],['[-']3]],Tabelle7[[#This Row],['[m']2]],Tabelle7[[#This Row],['[m']3]]) -> 2.44E-02 | X27: =IF(Tabelle7[[#This Row],['[-']2]]>0,Tabelle7[[#This Row],['[-']2]]*(Tabelle7[[#This Row],['[kg/m^3']]]/2)*Tabelle7[[#This Row],['[m/s']]]^2,Druckverlust(Tabelle7[[#This Row],[Spalte1]],C27,U27,V27,P27,L27,O27,J27,K27,Q27,D27,E27)) -> 2229.53 | Y27: 0.02229526872 | Z27: 15.45 | AA27: 15.43 | AB27: 2229.53 | AC27: =SUM($AB$10:AB27) -> 456998.63
B28: T-Stück (zum TC) | C28: Rohr | E28: 0.019 | F28: 4.00E-05 | G28: 141.12 | H28: 0.0392 | I28: 3.57E-02 | J28: 1543001.369 | K28: 338 | L28: =Dichte(K28,J28) -> 1.09764 | M28: =VLOOKUP(J28*0.00001,'Datenbak Werte'!$A$1:$B$500,2,TRUE)*0.000001 -> 9.71E-06 | N28: 8.85E-06 | O28: 8.99E-02 | P28: =Tabelle7[[#This Row],['[kg/h']]]/Tabelle7[[#This Row],['[kg/m^3']4]] -> 1570.09 | Q28: 125.96 | R28: =Tabelle7[[#This Row],['[m/s']]]/VLOOKUP(J28*0.00001,'Datenbak Werte'!$A$1:$C$500,3,TRUE) -> 0.09 | S28: 2.7044E+05 | T28: 2.1E-03 | U28: =Rohrreibungszahl(Tabelle7[[#This Row],['[-']]],Tabelle7[[#This Row],['[-']4]],Tabelle7[[#This Row],['[-']3]],Tabelle7[[#This Row],['[m']2]],Tabelle7[[#This Row],['[m']3]]) -> 2.44E-02 | W28: 0.05 | X28: =IF(Tabelle7[[#This Row],['[-']2]]>0,Tabelle7[[#This Row],['[-']2]]*(Tabelle7[[#This Row],['[kg/m^3']]]/2)*Tabelle7[[#This Row],['[m/s']]]^2,Druckverlust(Tabelle7[[#This Row],[Spalte1]],C28,U28,V28,P28,L28,O28,J28,K28,Q28,D28,E28)) -> 435.37 | Y28: 0.00435370172 | Z28: =J28/10^5 -> 15.43 | AA28: =Z28-Y28 -> 15.43 | AB28: =X28 -> 435.37 | AC28: =SUM($AB$10:AB28) -> 457434.00
B29: Sammelrohr | C29: Rohr | D29: 0.2 | E29: 0.019 | F29: 4.00E-05 | G29: 141.12 | H29: 0.0392 | I29: 3.57E-02 | J29: 1542565.999 | K29: 338 | L29: =Dichte(K29,J29) -> 1.09733 | M29: =VLOOKUP(J29*0.00001,'Datenbak Werte'!$A$1:$B$500,2,TRUE)*0.000001 -> 9.71E-06 | N29: 8.85E-06 | O29: 8.99E-02 | P29: =Tabelle7[[#This Row],['[kg/h']]]/Tabelle7[[#This Row],['[kg/m^3']4]] -> 1570.09 | Q29: 125.99 | R29: =Tabelle7[[#This Row],['[m/s']]]/VLOOKUP(J29*0.00001,'Datenbak Werte'!$A$1:$C$500,3,TRUE) -> 0.09 | S29: 2.7044E+05 | T29: 2.1E-03 | U29: =Rohrreibungszahl(Tabelle7[[#This Row],['[-']]],Tabelle7[[#This Row],['[-']4]],Tabelle7[[#This Row],['[-']3]],Tabelle7[[#This Row],['[m']2]],Tabelle7[[#This Row],['[m']3]]) -> 2.44E-02 | X29: =IF(Tabelle7[[#This Row],['[-']2]]>0,Tabelle7[[#This Row],['[-']2]]*(Tabelle7[[#This Row],['[kg/m^3']]]/2)*Tabelle7[[#This Row],['[m/s']]]^2,Druckverlust(Tabelle7[[#This Row],[Spalte1]],C29,U29,V29,P29,L29,O29,J29,K29,Q29,D29,E29)) -> 2233.35 | Y29: 0.02233346517 | Z29: =J29/10^5 -> 15.43 | AA29: =Z29-Y29 -> 15.40 | AB29: =X29 -> 2233.35 | AC29: =SUM($AB$10:AB29) -> 459667.35
B30: 90°Winkel FÜR-Connect (Ausgang Sammelrohr) | C30: Rohr | E30: 0.019 | F30: 4.00E-05 | G30: 141.12 | H30: 0.0392 | I30: 3.58E-02 | J30: 1540332.652 | K30: 338 | L30: =Dichte(K30,J30) -> 1.09576 | M30: =VLOOKUP(J30*0.00001,'Datenbak Werte'!$A$1:$B$500,2,TRUE)*0.000001 -> 9.71E-06 | N30: 8.86E-06 | O30: 8.99E-02 | P30: =Tabelle7[[#This Row],['[kg/h']]]/Tabelle7[[#This Row],['[kg/m^3']4]] -> 1570.09 | Q30: 126.18 | R30: =Tabelle7[[#This Row],['[m/s']]]/VLOOKUP(J30*0.00001,'Datenbak Werte'!$A$1:$C$500,3,TRUE) -> 0.09 | S30: 2.7044E+05 | T30: 2.1E-03 | U30: =Rohrreibungszahl(Tabelle7[[#This Row],['[-']]],Tabelle7[[#This Row],['[-']4]],Tabelle7[[#This Row],['[-']3]],Tabelle7[[#This Row],['[m']2]],Tabelle7[[#This Row],['[m']3]]) -> 2.44E-02 | W30: 0.15 | X30: =IF(Tabelle7[[#This Row],['[-']2]]>0,Tabelle7[[#This Row],['[-']2]]*(Tabelle7[[#This Row],['[kg/m^3']]]/2)*Tabelle7[[#This Row],['[m/s']]]^2,Druckverlust(Tabelle7[[#This Row],[Spalte1]],C30,U30,V30,P30,L30,O30,J30,K30,Q30,D30,E30)) -> 1308.35 | Y30: 0.01308354639 | Z30: 15.40 | AA30: 15.39 | AB30: 1308.35 | AC30: =SUM($AB$10:AB30) -> 460975.70
B31: Absperrventil (FPR-Connect) | C31: Ventil | E31: 0.019 | F31: 4.00E-05 | G31: 141.12 | H31: 0.0392 | I31: 3.58E-02 | J31: 1539024.297 | K31: 338 | L31: =Dichte(K31,J31) -> 1.09483 | M31: =VLOOKUP(J31*0.00001,'Datenbak Werte'!$A$1:$B$500,2,TRUE)*0.000001 -> 9.71E-06 | N31: 8.87E-06 | O31: 8.99E-02 | P31: =Tabelle7[[#This Row],['[kg/h']]]/Tabelle7[[#This Row],['[kg/m^3']4]] -> 1570.09 | Q31: 126.28 | R31: =Tabelle7[[#This Row],['[m/s']]]/VLOOKUP(J31*0.00001,'Datenbak Werte'!$A$1:$C$500,3,TRUE) -> 0.09 | S31: 2.7044E+05 | T31: 2.1E-03 | U31: =Rohrreibungszahl(Tabelle7[[#This Row],['[-']]],Tabelle7[[#This Row],['[-']4]],Tabelle7[[#This Row],['[-']3]],Tabelle7[[#This Row],['[m']2]],Tabelle7[[#This Row],['[m']3]]) -> Nur bei 'Rohr' benötigt | V31: 4 | X31: =IF(Tabelle7[[#This Row],['[-']2]]>0,Tabelle7[[#This Row],['[-']2]]*(Tabelle7[[#This Row],['[kg/m^3']]]/2)*Tabelle7[[#This Row],['[m/s']]]^2,Druckverlust(Tabelle7[[#This Row],[Spalte1]],C31,U31,V31,P31,L31,O31,J31,K31,Q31,D31,E31)) -> 125321.77 | Y31: 1.25321769 | Z31: =J31/10^5 -> 15.39 | AA31: =Z31-Y31 -> 14.14 | AB31: =X31 -> 125321.77 | AC31: =SUM($AB$10:AB31) -> 586297.47
B32: Filter | C32: Ventil | E32: 0.019 | F32: 4.00E-05 | G32: 141.12 | H32: 0.0392 | I32: 3.90E-02 | J32: 1413702.528 | K32: 338 | L32: =Dichte(K32,J32) -> 1.00636 | M32: =VLOOKUP(J32*0.00001,'Datenbak Werte'!$A$1:$B$500,2,TRUE)*0.000001 -> 9.71E-06 | N32: 9.65E-06 | O32: 8.99E-02 | P32: =Tabelle7[[#This Row],['[kg/h']]]/Tabelle7[[#This Row],['[kg/m^3']4]] -> 1570.09 | Q32: 137.38 | R32: =Tabelle7[[#This Row],['[m/s']]]/VLOOKUP(J32*0.00001,'Datenbak Werte'!$A$1:$C$500,3,TRUE) -> 0.10 | S32: 2.7046E+05 | T32: 2.1E-03 | U32: =Rohrreibungszahl(Tabelle7[[#This Row],['[-']]],Tabelle7[[#This Row],['[-']4]],Tabelle7[[#This Row],['[-']3]],Tabelle7[[#This Row],['[m']2]],Tabelle7[[#This Row],['[m']3]]) -> Nur bei 'Rohr' benötigt | V32: 4 | X32: =IF(Tabelle7[[#This Row],['[-']2]]>0,Tabelle7[[#This Row],['[-']2]]*(Tabelle7[[#This Row],['[kg/m^3']]]/2)*Tabelle7[[#This Row],['[m/s']]]^2,Druckverlust(Tabelle7[[#This Row],[Spalte1]],C32,U32,V32,P32,L32,O32,J32,K32,Q32,D32,E32)) -> 138985.96 | Y32: 1.389859563 | Z32: 14.14 | AA32: 12.75 | AB32: 138985.96 | AC32: =SUM($AB$10:AB32) -> 725283.43
B33: Rohr (FPR Druckführung) | C33: Rohr | D33: 0.4 | E33: 0.019 | F33: 4.00E-05 | G33: 141.12 | H33: 0.0392 | I33: 4.32E-02 | J33: 1274716.572 | K33: 338 | L33: =Dichte(K33,J33) -> 0.90810 | M33: =VLOOKUP(J33*0.00001,'Datenbak Werte'!$A$1:$B$500,2,TRUE)*0.000001 -> 9.71E-06 | N33: 1.07E-05 | O33: 8.99E-02 | P33: =Tabelle7[[#This Row],['[kg/h']]]/Tabelle7[[#This Row],['[kg/m^3']4]] -> 1570.09 | Q33: 152.25 | R33: =Tabelle7[[#This Row],['[m/s']]]/VLOOKUP(J33*0.00001,'Datenbak Werte'!$A$1:$C$500,3,TRUE) -> 0.11 | S33: 2.7048E+05 | T33: 2.1E-03 | U33: =Rohrreibungszahl(Tabelle7[[#This Row],['[-']]],Tabelle7[[#This Row],['[-']4]],Tabelle7[[#This Row],['[-']3]],Tabelle7[[#This Row],['[m']2]],Tabelle7[[#This Row],['[m']3]]) -> 2.44E-02 | X33: =IF(Tabelle7[[#This Row],['[-']2]]>0,Tabelle7[[#This Row],['[-']2]]*(Tabelle7[[#This Row],['[kg/m^3']]]/2)*Tabelle7[[#This Row],['[m/s']]]^2,Druckverlust(Tabelle7[[#This Row],[Spalte1]],C33,U33,V33,P33,L33,O33,J33,K33,Q33,D33,E33)) -> 5397.44 | Y33: 0.0539744475 | Z33: 12.75 | AA33: 12.69 | AB33: 5397.44 | AC33: =SUM($AB$10:AB33) -> 730680.87
B34: 90°Winkel | C34: Rohr | E34: 0.019 | F34: 4.00E-05 | G34: 141.12 | H34: 0.0392 | I34: 4.33E-02 | J34: 1269319.127 | K34: 338 | L34: =Dichte(K34,J34) -> 0.90428 | M34: =VLOOKUP(J34*0.00001,'Datenbak Werte'!$A$1:$B$500,2,TRUE)*0.000001 -> 9.71E-06 | N34: 1.07E-05 | O34: 8.99E-02 | P34: =Tabelle7[[#This Row],['[kg/h']]]/Tabelle7[[#This Row],['[kg/m^3']4]] -> 1570.09 | Q34: 152.89 | R34: =Tabelle7[[#This Row],['[m/s']]]/VLOOKUP(J34*0.00001,'Datenbak Werte'!$A$1:$C$500,3,TRUE) -> 0.11 | S34: 2.7048E+05 | T34: 2.1E-03 | U34: =Rohrreibungszahl(Tabelle7[[#This Row],['[-']]],Tabelle7[[#This Row],['[-']4]],Tabelle7[[#This Row],['[-']3]],Tabelle7[[#This Row],['[m']2]],Tabelle7[[#This Row],['[m']3]]) -> 2.44E-02 | W34: 0.15 | X34: =IF(Tabelle7[[#This Row],['[-']2]]>0,Tabelle7[[#This Row],['[-']2]]*(Tabelle7[[#This Row],['[kg/m^3']]]/2)*Tabelle7[[#This Row],['[m/s']]]^2,Druckverlust(Tabelle7[[#This Row],[Spalte1]],C34,U34,V34,P34,L34,O34,J34,K34,Q34,D34,E34)) -> 1585.39 | Y34: 0.01585387571 | Z34: 12.69 | AA34: 12.68 | AB34: 1585.39 | AC34: =SUM($AB$10:AB34) -> 732266.26
B35: Rohr (nach unten 2,8m) | C35: Rohr | D35: 2.8 | E35: 0.019 | F35: 4.00E-05 | G35: 141.12 | H35: 0.0392 | I35: 4.34E-02 | J35: 1267733.74 | K35: 338 | L35: =Dichte(K35,J35) -> 0.90316 | M35: =VLOOKUP(J35*0.00001,'Datenbak Werte'!$A$1:$B$500,2,TRUE)*0.000001 -> 9.71E-06 | N35: 1.08E-05 | O35: 8.99E-02 | P35: =Tabelle7[[#This Row],['[kg/h']]]/Tabelle7[[#This Row],['[kg/m^3']4]] -> 1570.09 | Q35: 153.08 | R35: =Tabelle7[[#This Row],['[m/s']]]/VLOOKUP(J35*0.00001,'Datenbak Werte'!$A$1:$C$500,3,TRUE) -> 0.11 | S35: 2.7048E+05 | T35: 2.1E-03 | U35: =Rohrreibungszahl(Tabelle7[[#This Row],['[-']]],Tabelle7[[#This Row],['[-']4]],Tabelle7[[#This Row],['[-']3]],Tabelle7[[#This Row],['[m']2]],Tabelle7[[#This Row],['[m']3]]) -> 2.44E-02 | X35: =IF(Tabelle7[[#This Row],['[-']2]]>0,Tabelle7[[#This Row],['[-']2]]*(Tabelle7[[#This Row],['[kg/m^3']]]/2)*Tabelle7[[#This Row],['[m/s']]]^2,Druckverlust(Tabelle7[[#This Row],[Spalte1]],C35,U35,V35,P35,L35,O35,J35,K35,Q35,D35,E35)) -> 37988.79 | Y35: 0.3798879266 | Z35: 12.68 | AA35: 12.30 | AB35: 37988.79 | AC35: =SUM($AB$10:AB35) -> 770255.05
B36: 90°Winkel | C36: Rohr | E36: 0.019 | F36: 4.00E-05 | G36: 141.12 | H36: 0.0392 | I36: 4.47E-02 | J36: 1229744.947 | K36: 338 | L36: =Dichte(K36,J36) -> 0.87628 | M36: =VLOOKUP(J36*0.00001,'Datenbak Werte'!$A$1:$B$500,2,TRUE)*0.000001 -> 9.71E-06 | N36: 1.11E-05 | O36: 8.99E-02 | P36: =Tabelle7[[#This Row],['[kg/h']]]/Tabelle7[[#This Row],['[kg/m^3']4]] -> 1570.09 | Q36: 157.78 | R36: =Tabelle7[[#This Row],['[m/s']]]/VLOOKUP(J36*0.00001,'Datenbak Werte'!$A$1:$C$500,3,TRUE) -> 0.11 | S36: 2.7048E+05 | T36: 2.1E-03 | U36: =Rohrreibungszahl(Tabelle7[[#This Row],['[-']]],Tabelle7[[#This Row],['[-']4]],Tabelle7[[#This Row],['[-']3]],Tabelle7[[#This Row],['[m']2]],Tabelle7[[#This Row],['[m']3]]) -> 2.44E-02 | W36: 0.15 | X36: =IF(Tabelle7[[#This Row],['[-']2]]>0,Tabelle7[[#This Row],['[-']2]]*(Tabelle7[[#This Row],['[kg/m^3']]]/2)*Tabelle7[[#This Row],['[m/s']]]^2,Druckverlust(Tabelle7[[#This Row],[Spalte1]],C36,U36,V36,P36,L36,O36,J36,K36,Q36,D36,E36)) -> 1636.06 | Y36: 0.01636057749 | Z36: 12.30 | AA36: 12.28 | AB36: 1636.06 | AC36: =SUM($AB$10:AB36) -> 771891.11
B37: Rohr (FPR Druckführung) | C37: Rohr | D37: 0.35 | E37: 0.019 | F37: 4.00E-05 | G37: 141.12 | H37: 0.0392 | I37: 4.48E-02 | J37: 1228108.889 | K37: 338 | L37: =Dichte(K37,J37) -> 0.87512 | M37: =VLOOKUP(J37*0.00001,'Datenbak Werte'!$A$1:$B$500,2,TRUE)*0.000001 -> 9.71E-06 | N37: 1.11E-05 | O37: 8.99E-02 | P37: =Tabelle7[[#This Row],['[kg/h']]]/Tabelle7[[#This Row],['[kg/m^3']4]] -> 1570.09 | Q37: 157.99 | R37: =Tabelle7[[#This Row],['[m/s']]]/VLOOKUP(J37*0.00001,'Datenbak Werte'!$A$1:$C$500,3,TRUE) -> 0.11 | S37: 2.7048E+05 | T37: 2.1E-03 | U37: =Rohrreibungszahl(Tabelle7[[#This Row],['[-']]],Tabelle7[[#This Row],['[-']4]],Tabelle7[[#This Row],['[-']3]],Tabelle7[[#This Row],['[m']2]],Tabelle7[[#This Row],['[m']3]]) -> 2.44E-02 | X37: =IF(Tabelle7[[#This Row],['[-']2]]>0,Tabelle7[[#This Row],['[-']2]]*(Tabelle7[[#This Row],['[kg/m^3']]]/2)*Tabelle7[[#This Row],['[m/s']]]^2,Druckverlust(Tabelle7[[#This Row],[Spalte1]],C37,U37,V37,P37,L37,O37,J37,K37,Q37,D37,E37)) -> 4900.77 | Y37: 0.04900765941 | Z37: 12.28 | AA37: 12.23 | AB37: 4900.77 | AC37: =SUM($AB$10:AB37) -> 776791.88
B38: Filter | C38: Ventil | E38: 0.019 | F38: 4.00E-05 | G38: 141.12 | H38: 0.0392 | I38: 4.50E-02 | J38: 1223208.124 | K38: 338 | L38: =Dichte(K38,J38) -> 0.87165 | M38: =VLOOKUP(J38*0.00001,'Datenbak Werte'!$A$1:$B$500,2,TRUE)*0.000001 -> 9.71E-06 | N38: 1.11E-05 | O38: 8.99E-02 | P38: =Tabelle7[[#This Row],['[kg/h']]]/Tabelle7[[#This Row],['[kg/m^3']4]] -> 1570.09 | Q38: 158.62 | R38: =Tabelle7[[#This Row],['[m/s']]]/VLOOKUP(J38*0.00001,'Datenbak Werte'!$A$1:$C$500,3,TRUE) -> 0.11 | S38: 2.7048E+05 | T38: 2.1E-03 | U38: =Rohrreibungszahl(Tabelle7[[#This Row],['[-']]],Tabelle7[[#This Row],['[-']4]],Tabelle7[[#This Row],['[-']3]],Tabelle7[[#This Row],['[m']2]],Tabelle7[[#This Row],['[m']3]]) -> Nur bei 'Rohr' benötigt | V38: 4 | X38: =IF(Tabelle7[[#This Row],['[-']2]]>0,Tabelle7[[#This Row],['[-']2]]*(Tabelle7[[#This Row],['[kg/m^3']]]/2)*Tabelle7[[#This Row],['[m/s']]]^2,Druckverlust(Tabelle7[[#This Row],[Spalte1]],C38,U38,V38,P38,L38,O38,J38,K38,Q38,D38,E38)) -> 167879.12 | Y38: 1.67879117 | Z38: 12.23 | AA38: 10.55 | AB38: 167879.12 | AC38: =SUM($AB$10:AB38) -> 944670.99
B39: 90°Winkel FÜR-Connect (Ausgang Sammelrohr) | C39: Rohr | E39: 0.019 | F39: 4.00E-05 | G39: 141.12 | H39: 0.0392 | I39: 5.21E-02 | J39: 1055329.007 | K39: 338 | L39: =Dichte(K39,J39) -> 0.75270 | M39: =VLOOKUP(J39*0.00001,'Datenbak Werte'!$A$1:$B$500,2,TRUE)*0.000001 -> 9.71E-06 | N39: 1.29E-05 | O39: 8.99E-02 | P39: =Tabelle7[[#This Row],['[kg/h']]]/Tabelle7[[#This Row],['[kg/m^3']4]] -> 1570.09 | Q39: 183.68 | R39: =Tabelle7[[#This Row],['[m/s']]]/VLOOKUP(J39*0.00001,'Datenbak Werte'!$A$1:$C$500,3,TRUE) -> 0.13 | S39: 2.7051E+05 | T39: 2.1E-03 | U39: =Rohrreibungszahl(Tabelle7[[#This Row],['[-']]],Tabelle7[[#This Row],['[-']4]],Tabelle7[[#This Row],['[-']3]],Tabelle7[[#This Row],['[m']2]],Tabelle7[[#This Row],['[m']3]]) -> 2.44E-02 | W39: 0.15 | X39: =IF(Tabelle7[[#This Row],['[-']2]]>0,Tabelle7[[#This Row],['[-']2]]*(Tabelle7[[#This Row],['[kg/m^3']]]/2)*Tabelle7[[#This Row],['[m/s']]]^2,Druckverlust(Tabelle7[[#This Row],[Spalte1]],C39,U39,V39,P39,L39,O39,J39,K39,Q39,D39,E39)) -> 1904.66 | Y39: 0.01904660167 | Z39: 10.55 | AA39: 10.53 | AB39: 1904.66 | AC39: =SUM($AB$10:AB39) -> 946575.65
B40: Sammelrohr | C40: Rohr | D40: 0.2 | E40: 0.019 | F40: 4.00E-05 | G40: 141.12 | H40: 0.0392 | I40: 5.22E-02 | J40: 1053424.346 | K40: 338 | L40: =Dichte(K40,J40) -> 0.75135 | M40: =VLOOKUP(J40*0.00001,'Datenbak Werte'!$A$1:$B$500,2,TRUE)*0.000001 -> 9.71E-06 | N40: 1.29E-05 | O40: 8.99E-02 | P40: =Tabelle7[[#This Row],['[kg/h']]]/Tabelle7[[#This Row],['[kg/m^3']4]] -> 1570.09 | Q40: 184.01 | R40: =Tabelle7[[#This Row],['[m/s']]]/VLOOKUP(J40*0.00001,'Datenbak Werte'!$A$1:$C$500,3,TRUE) -> 0.13 | S40: 2.7051E+05 | T40: 2.1E-03 | U40: =Rohrreibungszahl(Tabelle7[[#This Row],['[-']]],Tabelle7[[#This Row],['[-']4]],Tabelle7[[#This Row],['[-']3]],Tabelle7[[#This Row],['[m']2]],Tabelle7[[#This Row],['[m']3]]) -> 2.44E-02 | X40: =IF(Tabelle7[[#This Row],['[-']2]]>0,Tabelle7[[#This Row],['[-']2]]*(Tabelle7[[#This Row],['[kg/m^3']]]/2)*Tabelle7[[#This Row],['[m/s']]]^2,Druckverlust(Tabelle7[[#This Row],[Spalte1]],C40,U40,V40,P40,L40,O40,J40,K40,Q40,D40,E40)) -> 3261.74 | Y40: 0.03261741048 | Z40: 10.53 | AA40: 10.50 | AB40: 3261.74 | AC40: =SUM($AB$10:AB40) -> 949837.39
B41: T-Stück (zum TC) | C41: Rohr | E41: 0.019 | F41: 4.00E-05 | G41: 141.12 | H41: 0.0392 | I41: 5.23E-02 | J41: 1050162.605 | K41: 338 | L41: =Dichte(K41,J41) -> 0.74904 | M41: =VLOOKUP(J41*0.00001,'Datenbak Werte'!$A$1:$B$500,2,TRUE)*0.000001 -> 9.71E-06 | N41: 1.30E-05 | O41: 8.99E-02 | P41: =Tabelle7[[#This Row],['[kg/h']]]/Tabelle7[[#This Row],['[kg/m^3']4]] -> 1570.09 | Q41: 184.58 | R41: =Tabelle7[[#This Row],['[m/s']]]/VLOOKUP(J41*0.00001,'Datenbak Werte'!$A$1:$C$500,3,TRUE) -> 0.13 | S41: 2.7051E+05 | T41: 2.1E-03 | U41: =Rohrreibungszahl(Tabelle7[[#This Row],['[-']]],Tabelle7[[#This Row],['[-']4]],Tabelle7[[#This Row],['[-']3]],Tabelle7[[#This Row],['[m']2]],Tabelle7[[#This Row],['[m']3]]) -> 2.44E-02 | W41: 0.05 | X41: =IF(Tabelle7[[#This Row],['[-']2]]>0,Tabelle7[[#This Row],['[-']2]]*(Tabelle7[[#This Row],['[kg/m^3']]]/2)*Tabelle7[[#This Row],['[m/s']]]^2,Druckverlust(Tabelle7[[#This Row],[Spalte1]],C41,U41,V41,P41,L41,O41,J41,K41,Q41,D41,E41)) -> 637.99 | Y41: 0.006379923494 | Z41: 10.50 | AA41: 10.50 | AB41: 637.99 | AC41: =SUM($AB$10:AB41) -> 950475.39
B42: Sammelrohr | C42: Rohr | D42: 0.2 | E42: 0.019 | F42: 4.00E-05 | G42: 141.12 | H42: 0.0392 | I42: 5.24E-02 | J42: 1049524.613 | K42: 338 | L42: =Dichte(K42,J42) -> 0.74858 | M42: =VLOOKUP(J42*0.00001,'Datenbak Werte'!$A$1:$B$500,2,TRUE)*0.000001 -> 9.71E-06 | N42: 1.30E-05 | O42: 8.99E-02 | P42: =Tabelle7[[#This Row],['[kg/h']]]/Tabelle7[[#This Row],['[kg/m^3']4]] -> 1570.09 | Q42: 184.69 | R42: =Tabelle7[[#This Row],['[m/s']]]/VLOOKUP(J42*0.00001,'Datenbak Werte'!$A$1:$C$500,3,TRUE) -> 0.13 | S42: 2.7051E+05 | T42: 2.1E-03 | U42: =Rohrreibungszahl(Tabelle7[[#This Row],['[-']]],Tabelle7[[#This Row],['[-']4]],Tabelle7[[#This Row],['[-']3]],Tabelle7[[#This Row],['[m']2]],Tabelle7[[#This Row],['[m']3]]) -> 2.44E-02 | X42: =IF(Tabelle7[[#This Row],['[-']2]]>0,Tabelle7[[#This Row],['[-']2]]*(Tabelle7[[#This Row],['[kg/m^3']]]/2)*Tabelle7[[#This Row],['[m/s']]]^2,Druckverlust(Tabelle7[[#This Row],[Spalte1]],C42,U42,V42,P42,L42,O42,J42,K42,Q42,D42,E42)) -> 3273.79 | Y42: 0.03273791899 | Z42: 10.50 | AA42: 10.46 | AB42: 3273.79 | AC42: =SUM($AB$10:AB42) -> 953749.18
B43: T-Stück (zum TC) | C43: Rohr | E43: 0.019 | F43: 4.00E-05 | G43: 141.12 | H43: 0.0392 | I43: 5.25E-02 | J43: 1046250.821 | K43: 338 | L43: =Dichte(K43,J43) -> 0.74626 | M43: =VLOOKUP(J43*0.00001,'Datenbak Werte'!$A$1:$B$500,2,TRUE)*0.000001 -> 9.71E-06 | N43: 1.30E-05 | O43: 8.99E-02 | P43: =Tabelle7[[#This Row],['[kg/h']]]/Tabelle7[[#This Row],['[kg/m^3']4]] -> 1570.09 | Q43: 185.27 | R43: =Tabelle7[[#This Row],['[m/s']]]/VLOOKUP(J43*0.00001,'Datenbak Werte'!$A$1:$C$500,3,TRUE) -> 0.13 | S43: 2.7051E+05 | T43: 2.1E-03 | U43: =Rohrreibungszahl(Tabelle7[[#This Row],['[-']]],Tabelle7[[#This Row],['[-']4]],Tabelle7[[#This Row],['[-']3]],Tabelle7[[#This Row],['[m']2]],Tabelle7[[#This Row],['[m']3]]) -> 2.44E-02 | W43: 0.05 | X43: =IF(Tabelle7[[#This Row],['[-']2]]>0,Tabelle7[[#This Row],['[-']2]]*(Tabelle7[[#This Row],['[kg/m^3']]]/2)*Tabelle7[[#This Row],['[m/s']]]^2,Druckverlust(Tabelle7[[#This Row],[Spalte1]],C43,U43,V43,P43,L43,O43,J43,K43,Q43,D43,E43)) -> 640.36 | Y43: 0.006403642044 | Z43: 10.46 | AA43: 10.46 | AB43: 640.36 | AC43: =SUM($AB$10:AB43) -> 954389.54
B44: Sammelrohr | C44: Rohr | D44: 0.1 | E44: 0.019 | F44: 4.00E-05 | G44: 141.12 | H44: 0.0392 | I44: 5.26E-02 | J44: 1045610.457 | K44: 338 | L44: =Dichte(K44,J44) -> 0.74581 | M44: =VLOOKUP(J44*0.00001,'Datenbak Werte'!$A$1:$B$500,2,TRUE)*0.000001 -> 9.71E-06 | N44: 1.30E-05 | O44: 8.99E-02 | P44: =Tabelle7[[#This Row],['[kg/h']]]/Tabelle7[[#This Row],['[kg/m^3']4]] -> 1570.09 | Q44: 185.38 | R44: =Tabelle7[[#This Row],['[m/s']]]/VLOOKUP(J44*0.00001,'Datenbak Werte'!$A$1:$C$500,3,TRUE) -> 0.13 | S44: 2.7051E+05 | T44: 2.1E-03 | U44: =Rohrreibungszahl(Tabelle7[[#This Row],['[-']]],Tabelle7[[#This Row],['[-']4]],Tabelle7[[#This Row],['[-']3]],Tabelle7[[#This Row],['[m']2]],Tabelle7[[#This Row],['[m']3]]) -> 2.44E-02 | X44: =IF(Tabelle7[[#This Row],['[-']2]]>0,Tabelle7[[#This Row],['[-']2]]*(Tabelle7[[#This Row],['[kg/m^3']]]/2)*Tabelle7[[#This Row],['[m/s']]]^2,Druckverlust(Tabelle7[[#This Row],[Spalte1]],C44,U44,V44,P44,L44,O44,J44,K44,Q44,D44,E44)) -> 1642.99 | Y44: 0.01642988854 | Z44: 10.46 | AA44: 10.44 | AB44: 1642.99 | AC44: =SUM($AB$10:AB44) -> 956032.53
B45: T-Stück (Ausgang Sammelrohr) | C45: Rohr | E45: 0.019 | F45: 4.00E-05 | G45: 141.12 | H45: 0.0392 | I45: 5.26E-02 | J45: 1043967.468 | K45: 338 | L45: =Dichte(K45,J45) -> 0.74464 | M45: =VLOOKUP(J45*0.00001,'Datenbak Werte'!$A$1:$B$500,2,TRUE)*0.000001 -> 9.71E-06 | N45: 1.30E-05 | O45: 8.99E-02 | P45: =Tabelle7[[#This Row],['[kg/h']]]/Tabelle7[[#This Row],['[kg/m^3']4]] -> 1570.09 | Q45: 185.67 | R45: =Tabelle7[[#This Row],['[m/s']]]/VLOOKUP(J45*0.00001,'Datenbak Werte'!$A$1:$C$500,3,TRUE) -> 0.13 | S45: 2.7051E+05 | T45: 2.1E-03 | U45: =Rohrreibungszahl(Tabelle7[[#This Row],['[-']]],Tabelle7[[#This Row],['[-']4]],Tabelle7[[#This Row],['[-']3]],Tabelle7[[#This Row],['[m']2]],Tabelle7[[#This Row],['[m']3]]) -> 2.44E-02 | W45: 1.3 | X45: =IF(Tabelle7[[#This Row],['[-']2]]>0,Tabelle7[[#This Row],['[-']2]]*(Tabelle7[[#This Row],['[kg/m^3']]]/2)*Tabelle7[[#This Row],['[m/s']]]^2,Druckverlust(Tabelle7[[#This Row],[Spalte1]],C45,U45,V45,P45,L45,O45,J45,K45,Q45,D45,E45)) -> 16685.68 | Y45: 0.1668567937 | Z45: 10.44 | AA45: 10.27 | AB45: 16685.68 | AC45: =SUM($AB$10:AB45) -> 972718.21
C46: Rohr | D46: 0.2 | E46: 0.019 | F46: 4.00E-05 | G46: 141.12 | H46: 0.0392 | I46: 5.35E-02 | J46: 1027281.789 | K46: 338 | L46: =Dichte(K46,J46) -> 0.73281 | M46: =VLOOKUP(J46*0.00001,'Datenbak Werte'!$A$1:$B$500,2,TRUE)*0.000001 -> 9.71E-06 | N46: 1.33E-05 | O46: 8.99E-02 | P46: =Tabelle7[[#This Row],['[kg/h']]]/Tabelle7[[#This Row],['[kg/m^3']4]] -> 1570.09 | Q46: 188.67 | R46: =Tabelle7[[#This Row],['[m/s']]]/VLOOKUP(J46*0.00001,'Datenbak Werte'!$A$1:$C$500,3,TRUE) -> 0.13 | S46: 2.7051E+05 | T46: 2.1E-03 | U46: =Rohrreibungszahl(Tabelle7[[#This Row],['[-']]],Tabelle7[[#This Row],['[-']4]],Tabelle7[[#This Row],['[-']3]],Tabelle7[[#This Row],['[m']2]],Tabelle7[[#This Row],['[m']3]]) -> 2.44E-02 | X46: =IF(Tabelle7[[#This Row],['[-']2]]>0,Tabelle7[[#This Row],['[-']2]]*(Tabelle7[[#This Row],['[kg/m^3']]]/2)*Tabelle7[[#This Row],['[m/s']]]^2,Druckverlust(Tabelle7[[#This Row],[Spalte1]],C46,U46,V46,P46,L46,O46,J46,K46,Q46,D46,E46)) -> 3344.28 | Y46: 0.03344275242 | Z46: 10.27 | AA46: 10.24 | AB46: 3344.28 | AC46: =SUM($AB$10:AB46) -> 976062.49
B47: T-Stück (Überdruckventil) | C47: Rohr | E47: 0.019 | F47: 4.00E-05 | G47: 141.12 | H47: 0.0392 | I47: 5.37E-02 | J47: 1023937.513 | K47: 338 | L47: =Dichte(K47,J47) -> 0.73043 | M47: =VLOOKUP(J47*0.00001,'Datenbak Werte'!$A$1:$B$500,2,TRUE)*0.000001 -> 9.71E-06 | N47: 1.33E-05 | O47: 8.99E-02 | P47: =Tabelle7[[#This Row],['[kg/h']]]/Tabelle7[[#This Row],['[kg/m^3']4]] -> 1570.09 | Q47: 189.28 | R47: =Tabelle7[[#This Row],['[m/s']]]/VLOOKUP(J47*0.00001,'Datenbak Werte'!$A$1:$C$500,3,TRUE) -> 0.13 | S47: 2.7051E+05 | T47: 2.1E-03 | U47: =Rohrreibungszahl(Tabelle7[[#This Row],['[-']]],Tabelle7[[#This Row],['[-']4]],Tabelle7[[#This Row],['[-']3]],Tabelle7[[#This Row],['[m']2]],Tabelle7[[#This Row],['[m']3]]) -> 2.44E-02 | W47: 0.05 | X47: =IF(Tabelle7[[#This Row],['[-']2]]>0,Tabelle7[[#This Row],['[-']2]]*(Tabelle7[[#This Row],['[kg/m^3']]]/2)*Tabelle7[[#This Row],['[m/s']]]^2,Druckverlust(Tabelle7[[#This Row],[Spalte1]],C47,U47,V47,P47,L47,O47,J47,K47,Q47,D47,E47)) -> 654.24 | Y47: 0.00654240077 | Z47: 10.24 | AA47: 10.23 | AB47: 654.24 | AC47: =SUM($AB$10:AB47) -> 976716.73
C48: Rohr | D48: 0.2 | E48: 0.019 | F48: 4.00E-05 | G48: 141.12 | H48: 0.0392 | I48: 5.37E-02 | J48: 1023283.273 | K48: 338 | L48: =Dichte(K48,J48) -> 0.72997 | M48: =VLOOKUP(J48*0.00001,'Datenbak Werte'!$A$1:$B$500,2,TRUE)*0.000001 -> 9.71E-06 | N48: 1.33E-05 | O48: 8.99E-02 | P48: =Tabelle7[[#This Row],['[kg/h']]]/Tabelle7[[#This Row],['[kg/m^3']4]] -> 1570.09 | Q48: 189.40 | R48: =Tabelle7[[#This Row],['[m/s']]]/VLOOKUP(J48*0.00001,'Datenbak Werte'!$A$1:$C$500,3,TRUE) -> 0.13 | S48: 2.7051E+05 | T48: 2.1E-03 | U48: =Rohrreibungszahl(Tabelle7[[#This Row],['[-']]],Tabelle7[[#This Row],['[-']4]],Tabelle7[[#This Row],['[-']3]],Tabelle7[[#This Row],['[m']2]],Tabelle7[[#This Row],['[m']3]]) -> 2.44E-02 | X48: =IF(Tabelle7[[#This Row],['[-']2]]>0,Tabelle7[[#This Row],['[-']2]]*(Tabelle7[[#This Row],['[kg/m^3']]]/2)*Tabelle7[[#This Row],['[m/s']]]^2,Druckverlust(Tabelle7[[#This Row],[Spalte1]],C48,U48,V48,P48,L48,O48,J48,K48,Q48,D48,E48)) -> 3357.27 | Y48: 0.03357270716 | Z48: 10.23 | AA48: 10.20 | AB48: 3357.27 | AC48: =SUM($AB$10:AB48) -> 980074.00
B49: T-Stück (Sensoren) | C49: Rohr | E49: 0.019 | F49: 4.00E-05 | G49: 141.12 | H49: 0.0392 | I49: 5.39E-02 | J49: 1019926.003 | K49: 338 | L49: =Dichte(K49,J49) -> 0.72759 | M49: =VLOOKUP(J49*0.00001,'Datenbak Werte'!$A$1:$B$500,2,TRUE)*0.000001 -> 9.71E-06 | N49: 1.33E-05 | O49: 8.99E-02 | P49: =Tabelle7[[#This Row],['[kg/h']]]/Tabelle7[[#This Row],['[kg/m^3']4]] -> 1570.09 | Q49: 190.02 | R49: =Tabelle7[[#This Row],['[m/s']]]/VLOOKUP(J49*0.00001,'Datenbak Werte'!$A$1:$C$500,3,TRUE) -> 0.14 | S49: 2.7051E+05 | T49: 2.1E-03 | U49: =Rohrreibungszahl(Tabelle7[[#This Row],['[-']]],Tabelle7[[#This Row],['[-']4]],Tabelle7[[#This Row],['[-']3]],Tabelle7[[#This Row],['[m']2]],Tabelle7[[#This Row],['[m']3]]) -> 2.44E-02 | W49: 0.05 | X49: =IF(Tabelle7[[#This Row],['[-']2]]>0,Tabelle7[[#This Row],['[-']2]]*(Tabelle7[[#This Row],['[kg/m^3']]]/2)*Tabelle7[[#This Row],['[m/s']]]^2,Druckverlust(Tabelle7[[#This Row],[Spalte1]],C49,U49,V49,P49,L49,O49,J49,K49,Q49,D49,E49)) -> 656.80 | Y49: 0.006567990841 | Z49: 10.20 | AA49: 10.19 | AB49: 656.80 | AC49: =SUM($AB$10:AB49) -> 980730.80
C50: Rohr | D50: 0.2 | E50: 0.019 | F50: 4.00E-05 | G50: 141.12 | H50: 0.0392 | I50: 5.39E-02 | J50: 1019269.204 | K50: 338 | L50: =Dichte(K50,J50) -> 0.72712 | M50: =VLOOKUP(J50*0.00001,'Datenbak Werte'!$A$1:$B$500,2,TRUE)*0.000001 -> 9.71E-06 | N50: 1.34E-05 | O50: 8.99E-02 | P50: =Tabelle7[[#This Row],['[kg/h']]]/Tabelle7[[#This Row],['[kg/m^3']4]] -> 1570.09 | Q50: 190.14 | R50: =Tabelle7[[#This Row],['[m/s']]]/VLOOKUP(J50*0.00001,'Datenbak Werte'!$A$1:$C$500,3,TRUE) -> 0.14 | S50: 2.7051E+05 | T50: 2.1E-03 | U50: =Rohrreibungszahl(Tabelle7[[#This Row],['[-']]],Tabelle7[[#This Row],['[-']4]],Tabelle7[[#This Row],['[-']3]],Tabelle7[[#This Row],['[m']2]],Tabelle7[[#This Row],['[m']3]]) -> 2.44E-02 | X50: =IF(Tabelle7[[#This Row],['[-']2]]>0,Tabelle7[[#This Row],['[-']2]]*(Tabelle7[[#This Row],['[kg/m^3']]]/2)*Tabelle7[[#This Row],['[m/s']]]^2,Druckverlust(Tabelle7[[#This Row],[Spalte1]],C50,U50,V50,P50,L50,O50,J50,K50,Q50,D50,E50)) -> 3370.42 | Y50: 0.03370419299 | Z50: 10.19 | AA50: 10.16 | AB50: 3370.42 | AC50: =SUM($AB$10:AB50) -> 984101.22
B51: T-Stück (Entlüftungsventil) | C51: Rohr | E51: 0.019 | F51: 4.00E-05 | G51: 141.12 | H51: 0.0392 | I51: 5.41E-02 | J51: 1015898.784 | K51: 338 | L51: =Dichte(K51,J51) -> 0.72473 | M51: =VLOOKUP(J51*0.00001,'Datenbak Werte'!$A$1:$B$500,2,TRUE)*0.000001 -> 9.71E-06 | N51: 1.34E-05 | O51: 8.99E-02 | P51: =Tabelle7[[#This Row],['[kg/h']]]/Tabelle7[[#This Row],['[kg/m^3']4]] -> 1570.09 | Q51: 190.77 | R51: =Tabelle7[[#This Row],['[m/s']]]/VLOOKUP(J51*0.00001,'Datenbak Werte'!$A$1:$C$500,3,TRUE) -> 0.14 | S51: 2.7051E+05 | T51: 2.1E-03 | U51: =Rohrreibungszahl(Tabelle7[[#This Row],['[-']]],Tabelle7[[#This Row],['[-']4]],Tabelle7[[#This Row],['[-']3]],Tabelle7[[#This Row],['[m']2]],Tabelle7[[#This Row],['[m']3]]) -> 2.44E-02 | W51: 0.05 | X51: =IF(Tabelle7[[#This Row],['[-']2]]>0,Tabelle7[[#This Row],['[-']2]]*(Tabelle7[[#This Row],['[kg/m^3']]]/2)*Tabelle7[[#This Row],['[m/s']]]^2,Druckverlust(Tabelle7[[#This Row],[Spalte1]],C51,U51,V51,P51,L51,O51,J51,K51,Q51,D51,E51)) -> 659.39 | Y51: 0.006593884398 | Z51: 10.16 | AA51: 10.15 | AB51: 659.39 | AC51: =SUM($AB$10:AB51) -> 984760.60
B52: Hauptventil | C52: Ventil | E52: 0.019 | F52: 4.00E-05 | G52: 141.12 | H52: 0.0392 | I52: 5.41E-02 | J52: 1015239.396 | K52: 338 | L52: =Dichte(K52,J52) -> 0.72426 | M52: =VLOOKUP(J52*0.00001,'Datenbak Werte'!$A$1:$B$500,2,TRUE)*0.000001 -> 9.71E-06 | N52: 1.34E-05 | O52: 8.99E-02 | P52: =Tabelle7[[#This Row],['[kg/h']]]/Tabelle7[[#This Row],['[kg/m^3']4]] -> 1570.09 | Q52: 190.89 | R52: =Tabelle7[[#This Row],['[m/s']]]/VLOOKUP(J52*0.00001,'Datenbak Werte'!$A$1:$C$500,3,TRUE) -> 0.14 | S52: 2.7051E+05 | T52: 2.1E-03 | U52: =Rohrreibungszahl(Tabelle7[[#This Row],['[-']]],Tabelle7[[#This Row],['[-']4]],Tabelle7[[#This Row],['[-']3]],Tabelle7[[#This Row],['[m']2]],Tabelle7[[#This Row],['[m']3]]) -> Nur bei 'Rohr' benötigt | V52: 4 | X52: =IF(Tabelle7[[#This Row],['[-']2]]>0,Tabelle7[[#This Row],['[-']2]]*(Tabelle7[[#This Row],['[kg/m^3']]]/2)*Tabelle7[[#This Row],['[m/s']]]^2,Druckverlust(Tabelle7[[#This Row],[Spalte1]],C52,U52,V52,P52,L52,O52,J52,K52,Q52,D52,E52)) -> 223876.76 | Y52: 2.23876758 | Z52: 10.15 | AA52: 7.91 | AB52: 223876.76 | AC52: =SUM($AB$10:AB52) -> 1208637.36
C53: Rohr | D53: 0.2 | E53: 0.019 | F53: 4.00E-05 | G53: 141.12 | H53: 0.0392 | I53: 6.94E-02 | J53: 791362.6378 | K53: 338 | L53: =Dichte(K53,J53) -> 0.56523 | M53: =VLOOKUP(J53*0.00001,'Datenbak Werte'!$A$1:$B$500,2,TRUE)*0.000001 -> 9.71E-06 | N53: 1.72E-05 | O53: 8.99E-02 | P53: =Tabelle7[[#This Row],['[kg/h']]]/Tabelle7[[#This Row],['[kg/m^3']4]] -> 1570.09 | Q53: 244.60 | R53: =Tabelle7[[#This Row],['[m/s']]]/VLOOKUP(J53*0.00001,'Datenbak Werte'!$A$1:$C$500,3,TRUE) -> 0.17 | S53: 2.7055E+05 | T53: 2.1E-03 | U53: =Rohrreibungszahl(Tabelle7[[#This Row],['[-']]],Tabelle7[[#This Row],['[-']4]],Tabelle7[[#This Row],['[-']3]],Tabelle7[[#This Row],['[m']2]],Tabelle7[[#This Row],['[m']3]]) -> 2.44E-02 | X53: =IF(Tabelle7[[#This Row],['[-']2]]>0,Tabelle7[[#This Row],['[-']2]]*(Tabelle7[[#This Row],['[kg/m^3']]]/2)*Tabelle7[[#This Row],['[m/s']]]^2,Druckverlust(Tabelle7[[#This Row],[Spalte1]],C53,U53,V53,P53,L53,O53,J53,K53,Q53,D53,E53)) -> 4335.72 | Y53: 0.0433572453 | Z53: 7.91 | AA53: 7.87 | AB53: 4335.72 | AC53: =SUM($AB$10:AB53) -> 1212973.09
B54: T-Stück (Druckminderer) | C54: Rohr | E54: 0.019 | F54: 4.00E-05 | G54: =17.64*4 -> 70.56 | H54: 0.0196 | I54: 3.49E-02 | J54: 787026.9133 | K54: 338 | L54: =Dichte(K54,J54) -> 0.56215 | M54: =VLOOKUP(J54*0.00001,'Datenbak Werte'!$A$1:$B$500,2,TRUE)*0.000001 -> 9.71E-06 | N54: 1.73E-05 | O54: 8.99E-02 | P54: =Tabelle7[[#This Row],['[kg/h']]]/Tabelle7[[#This Row],['[kg/m^3']4]] -> 785.05 | Q54: 122.97 | R54: =Tabelle7[[#This Row],['[m/s']]]/VLOOKUP(J54*0.00001,'Datenbak Werte'!$A$1:$C$500,3,TRUE) -> 0.09 | S54: 1.3527E+05 | T54: 2.1E-03 | U54: =Rohrreibungszahl(Tabelle7[[#This Row],['[-']]],Tabelle7[[#This Row],['[-']4]],Tabelle7[[#This Row],['[-']3]],Tabelle7[[#This Row],['[m']2]],Tabelle7[[#This Row],['[m']3]]) -> 2.50E-02 | W54: 1.3 | X54: =IF(Tabelle7[[#This Row],['[-']2]]>0,Tabelle7[[#This Row],['[-']2]]*(Tabelle7[[#This Row],['[kg/m^3']]]/2)*Tabelle7[[#This Row],['[m/s']]]^2,Druckverlust(Tabelle7[[#This Row],[Spalte1]],C54,U54,V54,P54,L54,O54,J54,K54,Q54,D54,E54)) -> 5525.60 | Y54: 0.05525596099 | Z54: 7.87 | AA54: 7.82 | AB54: 5525.60 | AC54: =SUM($AB$10:AB54) -> 1218498.68
C55: Rohr | D55: 0.3 | E55: 0.019 | F55: 4.00E-05 | G55: =17.64*4 -> 70.56 | H55: 0.0196 | I55: 3.51E-02 | J55: 781501.3172 | K55: 338 | L55: =Dichte(K55,J55) -> 0.55822 | M55: =VLOOKUP(J55*0.00001,'Datenbak Werte'!$A$1:$B$500,2,TRUE)*0.000001 -> 9.71E-06 | N55: 1.74E-05 | O55: 8.99E-02 | P55: =Tabelle7[[#This Row],['[kg/h']]]/Tabelle7[[#This Row],['[kg/m^3']4]] -> 785.05 | Q55: 123.84 | R55: =Tabelle7[[#This Row],['[m/s']]]/VLOOKUP(J55*0.00001,'Datenbak Werte'!$A$1:$C$500,3,TRUE) -> 0.09 | S55: 1.3527E+05 | T55: 2.1E-03 | U55: =Rohrreibungszahl(Tabelle7[[#This Row],['[-']]],Tabelle7[[#This Row],['[-']4]],Tabelle7[[#This Row],['[-']3]],Tabelle7[[#This Row],['[m']2]],Tabelle7[[#This Row],['[m']3]]) -> 2.50E-02 | X55: =IF(Tabelle7[[#This Row],['[-']2]]>0,Tabelle7[[#This Row],['[-']2]]*(Tabelle7[[#This Row],['[kg/m^3']]]/2)*Tabelle7[[#This Row],['[m/s']]]^2,Druckverlust(Tabelle7[[#This Row],[Spalte1]],C55,U55,V55,P55,L55,O55,J55,K55,Q55,D55,E55)) -> 1686.63 | Y55: 0.01686625644 | Z55: 7.82 | AA55: 7.80 | AB55: 1686.63 | AC55: =SUM($AB$10:AB55) -> 1220185.31
B56: 90°Winkel | C56: Rohr | E56: 0.019 | F56: 4.00E-05 | G56: 70.56 | H56: 0.0196 | I56: 3.52E-02 | J56: 779814.6915 | K56: 338 | L56: =Dichte(K56,J56) -> 0.55702 | M56: =VLOOKUP(J56*0.00001,'Datenbak Werte'!$A$1:$B$500,2,TRUE)*0.000001 -> 9.71E-06 | N56: 1.74E-05 | O56: 8.99E-02 | P56: =Tabelle7[[#This Row],['[kg/h']]]/Tabelle7[[#This Row],['[kg/m^3']4]] -> 785.05 | Q56: 124.10 | R56: =Tabelle7[[#This Row],['[m/s']]]/VLOOKUP(J56*0.00001,'Datenbak Werte'!$A$1:$C$500,3,TRUE) -> 0.09 | S56: 1.3527E+05 | T56: 2.1E-03 | U56: =Rohrreibungszahl(Tabelle7[[#This Row],['[-']]],Tabelle7[[#This Row],['[-']4]],Tabelle7[[#This Row],['[-']3]],Tabelle7[[#This Row],['[m']2]],Tabelle7[[#This Row],['[m']3]]) -> 2.50E-02 | W56: 0.15 | X56: =IF(Tabelle7[[#This Row],['[-']2]]>0,Tabelle7[[#This Row],['[-']2]]*(Tabelle7[[#This Row],['[kg/m^3']]]/2)*Tabelle7[[#This Row],['[m/s']]]^2,Druckverlust(Tabelle7[[#This Row],[Spalte1]],C56,U56,V56,P56,L56,O56,J56,K56,Q56,D56,E56)) -> 643.44 | Y56: 0.006434403623 | Z56: 7.80 | AA56: 7.79 | AB56: 643.44 | AC56: =SUM($AB$10:AB56) -> 1220828.75
C57: Rohr | D57: 0.2 | E57: 0.019 | F57: 4.00E-05 | G57: 70.56 | H57: 0.0196 | I57: 3.52E-02 | J57: 779171.2512 | K57: 338 | L57: =Dichte(K57,J57) -> 0.55656 | M57: =VLOOKUP(J57*0.00001,'Datenbak Werte'!$A$1:$B$500,2,TRUE)*0.000001 -> 9.71E-06 | N57: 1.74E-05 | O57: 8.99E-02 | P57: =Tabelle7[[#This Row],['[kg/h']]]/Tabelle7[[#This Row],['[kg/m^3']4]] -> 785.05 | Q57: 124.21 | R57: =Tabelle7[[#This Row],['[m/s']]]/VLOOKUP(J57*0.00001,'Datenbak Werte'!$A$1:$C$500,3,TRUE) -> 0.09 | S57: 1.3527E+05 | T57: 2.1E-03 | U57: =Rohrreibungszahl(Tabelle7[[#This Row],['[-']]],Tabelle7[[#This Row],['[-']4]],Tabelle7[[#This Row],['[-']3]],Tabelle7[[#This Row],['[m']2]],Tabelle7[[#This Row],['[m']3]]) -> 2.50E-02 | X57: =IF(Tabelle7[[#This Row],['[-']2]]>0,Tabelle7[[#This Row],['[-']2]]*(Tabelle7[[#This Row],['[kg/m^3']]]/2)*Tabelle7[[#This Row],['[m/s']]]^2,Druckverlust(Tabelle7[[#This Row],[Spalte1]],C57,U57,V57,P57,L57,O57,J57,K57,Q57,D57,E57)) -> 1127.77 | Y57: 0.0112776541 | Z57: 7.79 | AA57: 7.78 | AB57: 1127.77 | AC57: =SUM($AB$10:AB57) -> 1221956.51
B58: Ergebnis | AB58: Druckverlust gesamt in bar | AC58: =SUBTOTAL(104,Tabelle7['[Pa']4])*0.00001 -> 12.21956514

Sheet Datenbak Werte
A1: Pressure (bar) | B1: Viscosity (uPa*s) | C1: Sound Spd, (m/s)
A2: 0 | B2: 9.707 | C2: 1397.6
A3: 1 | B3: 9.7074 | C3: 1398.4
A4: 2 | B4: 9.7077 | C4: 1399.2
A5: 3 | B5: 9.7081 | C5: 1400
A6: 4 | B6: 9.7084 | C6: 1400.8
A7: 5 | B7: 9.7088 | C7: 1401.6
A8: 6 | B8: 9.7092 | C8: 1402.4
A9: 7 | B9: 9.7096 | C9: 1403.2
A10: 8 | B10: 9.71 | C10: 1404
A11: 9 | B11: 9.7104 | C11: 1404.8
A12: 10 | B12: 9.7109 | C12: 1405.6
A13: 11 | B13: 9.7113 | C13: 1406.5
A14: 12 | B14: 9.7118 | C14: 1407.3
A15: 13 | B15: 9.7123 | C15: 1408.1
A16: 14 | B16: 9.7128 | C16: 1408.9
A17: 15 | B17: 9.7133 | C17: 1409.7
A18: 16 | B18: 9.7138 | C18: 1410.5
A19: 17 | B19: 9.7143 | C19: 1411.3
A20: 18 | B20: 9.7149 | C20: 1412.1
A21: 19 | B21: 9.7154 | C21: 1412.9
A22: 20 | B22: 9.716 | C22: 1413.7
A23: 21 | B23: 9.7166 | C23: 1414.5
A24: 22 | B24: 9.7171 | C24: 1415.4
A25: 23 | B25: 9.7177 | C25: 1416.2
A26: 24 | B26: 9.7184 | C26: 1417
A27: 25 | B27: 9.719 | C27: 1417.8
A28: 26 | B28: 9.7196 | C28: 1418.6
A29: 27 | B29: 9.7203 | C29: 1419.4
A30: 28 | B30: 9.7209 | C30: 1420.2
A31: 29 | B31: 9.7216 | C31: 1421
A32: 30 | B32: 9.7223 | C32: 1421.8
A33: 31 | B33: 9.723 | C33: 1422.6
A34: 32 | B34: 9.7237 | C34: 1423.5
A35: 33 | B35: 9.7244 | C35: 1424.3
A36: 34 | B36: 9.7251 | C36: 1425.1
A37: 35 | B37: 9.7258 | C37: 1425.9
A38: 36 | B38: 9.7266 | C38: 1426.7
A39: 37 | B39: 9.7273 | C39: 1427.5
A40: 38 | B40: 9.7281 | C40: 1428.3
A41: 39 | B41: 9.7289 | C41: 1429.1
A42: 40 | B42: 9.7297 | C42: 1430
A43: 41 | B43: 9.7305 | C43: 1430.8
A44: 42 | B44: 9.7313 | C44: 1431.6
A45: 43 | B45: 9.7321 | C45: 1432.4
A46: 44 | B46: 9.733 | C46: 1433.2
A47: 45 | B47: 9.7338 | C47: 1434
A48: 46 | B48: 9.7347 | C48: 1434.8
A49: 47 | B49: 9.7356 | C49: 1435.6
A50: 48 | B50: 9.7364 | C50: 1436.5
A51: 49 | B51: 9.7373 | C51: 1437.3
A52: 50 | B52: 9.7382 | C52: 1438.1
A53: 51 | B53: 9.7391 | C53: 1438.9
A54: 52 | B54: 9.7401 | C54: 1439.7
A55: 53 | B55: 9.741 | C55: 1440.5
A56: 54 | B56: 9.742 | C56: 1441.3
A57: 55 | B57: 9.7429 | C57: 1442.2
A58: 56 | B58: 9.7439 | C58: 1443
A59: 57 | B59: 9.7449 | C59: 1443.8
A60: 58 | B60: 9.7458 | C60: 1444.6
A61: 59 | B61: 9.7468 | C61: 1445.4
A62: 60 | B62: 9.7479 | C62: 1446.2
A63: 61 | B63: 9.7489 | C63: 1447.1
A64: 62 | B64: 9.7499 | C64: 1447.9
A65: 63 | B65: 9.7509 | C65: 1448.7
A66: 64 | B66: 9.752 | C66: 1449.5
A67: 65 | B67: 9.7531 | C67: 1450.3
A68: 66 | B68: 9.7541 | C68: 1451.1
A69: 67 | B69: 9.7552 | C69: 1451.9
A70: 68 | B70: 9.7563 | C70: 1452.8
A71: 69 | B71: 9.7574 | C71: 1453.6
A72: 70 | B72: 9.7585 | C72: 1454.4
A73: 71 | B73: 9.7596 | C73: 1455.2
A74: 72 | B74: 9.7608 | C74: 1456
A75: 73 | B75: 9.7619 | C75: 1456.9
A76: 74 | B76: 9.7631 | C76: 1457.7
A77: 75 | B77: 9.7642 | C77: 1458.5
A78: 76 | B78: 9.7654 | C78: 1459.3
A79: 77 | B79: 9.7666 | C79: 1460.1
A80: 78 | B80: 9.7678 | C80: 1460.9
A81: 79 | B81: 9.769 | C81: 1461.8
A82: 80 | B82: 9.7702 | C82: 1462.6
A83: 81 | B83: 9.7714 | C83: 1463.4
A84: 82 | B84: 9.7726 | C84: 1464.2
A85: 83 | B85: 9.7739 | C85: 1465
A86: 84 | B86: 9.7751 | C86: 1465.9
A87: 85 | B87: 9.7764 | C87: 1466.7
A88: 86 | B88: 9.7776 | C88: 1467.5
A89: 87 | B89: 9.7789 | C89: 1468.3
A90: 88 | B90: 9.7802 | C90: 1469.1
A91: 89 | B91: 9.7815 | C91: 1469.9
A92: 90 | B92: 9.7828 | C92: 1470.8
A93: 91 | B93: 9.7841 | C93: 1471.6
A94: 92 | B94: 9.7854 | C94: 1472.4
A95: 93 | B95: 9.7868 | C95: 1473.2
A96: 94 | B96: 9.7881 | C96: 1474
A97: 95 | B97: 9.7895 | C97: 1474.9
A98: 96 | B98: 9.7908 | C98: 1475.7
A99: 97 | B99: 9.7922 | C99: 1476.5
A100: 98 | B100: 9.7936 | C100: 1477.3
A101: 99 | B101: 9.795 | C101: 1478.2
A102: 100 | B102: 9.7964 | C102: 1479
A103: 101 | B103: 9.7978 | C103: 1479.8
A104: 102 | B104: 9.7992 | C104: 1480.6
A105: 103 | B105: 9.8006 | C105: 1481.4
A106: 104 | B106: 9.8021 | C106: 1482.3
A107: 105 | B107: 9.8035 | C107: 1483.1
A108: 106 | B108: 9.805 | C108: 1483.9
A109: 107 | B109: 9.8064 | C109: 1484.7
A110: 108 | B110: 9.8079 | C110: 1485.5
A111: 109 | B111: 9.8094 | C111: 1486.4
A112: 110 | B112: 9.8108 | C112: 1487.2
A113: 111 | B113: 9.8123 | C113: 1488
A114: 112 | B114: 9.8138 | C114: 1488.8
A115: 113 | B115: 9.8154 | C115: 1489.7
A116: 114 | B116: 9.8169 | C116: 1490.5
A117: 115 | B117: 9.8184 | C117: 1491.3
A118: 116 | B118: 9.82 | C118: 1492.1
A119: 117 | B119: 9.8215 | C119: 1492.9
A120: 118 | B120: 9.8231 | C120: 1493.8
A121: 119 | B121: 9.8246 | C121: 1494.6
A122: 120 | B122: 9.8262 | C122: 1495.4
A123: 121 | B123: 9.8278 | C123: 1496.2
A124: 122 | B124: 9.8294 | C124: 1497.1
A125: 123 | B125: 9.831 | C125: 1497.9
A126: 124 | B126: 9.8326 | C126: 1498.7
A127: 125 | B127: 9.8342 | C127: 1499.5
A128: 126 | B128: 9.8358 | C128: 1500.4
A129: 127 | B129: 9.8374 | C129: 1501.2
A130: 128 | B130: 9.8391 | C130: 1502
A131: 129 | B131: 9.8407 | C131: 1502.8
A132: 130 | B132: 9.8424 | C132: 1503.7
A133: 131 | B133: 9.8441 | C133: 1504.5
A134: 132 | B134: 9.8457 | C134: 1505.3
A135: 133 | B135: 9.8474 | C135: 1506.1
A136: 134 | B136: 9.8491 | C136: 1506.9
A137: 135 | B137: 9.8508 | C137: 1507.8
A138: 136 | B138: 9.8525 | C138: 1508.6
A139: 137 | B139: 9.8542 | C139: 1509.4
A140: 138 | B140: 9.8559 | C140: 1510.2
A141: 139 | B141: 9.8577 | C141: 1511.1
A142: 140 | B142: 9.8594 | C142: 1511.9
A143: 141 | B143: 9.8611 | C143: 1512.7
A144: 142 | B144: 9.8629 | C144: 1513.5
A145: 143 | B145: 9.8647 | C145: 1514.4
A146: 144 | B146: 9.8664 | C146: 1515.2
A147: 145 | B147: 9.8682 | C147: 1516
A148: 146 | B148: 9.87 | C148: 1516.8
A149: 147 | B149: 9.8718 | C149: 1517.7
A150: 148 | B150: 9.8736 | C150: 1518.5
A151: 149 | B151: 9.8754 | C151: 1519.3
A152: 150 | B152: 9.8772 | C152: 1520.1
A153: 151 | B153: 9.879 | C153: 1521
A154: 152 | B154: 9.8808 | C154: 1521.8
A155: 153 | B155: 9.8827 | C155: 1522.6
A156: 154 | B156: 9.8845 | C156: 1523.4
A157: 155 | B157: 9.8864 | C157: 1524.3
A158: 156 | B158: 9.8882 | C158: 1525.1
A159: 157 | B159: 9.8901 | C159: 1525.9
A160: 158 | B160: 9.892 | C160: 1526.7
A161: 159 | B161: 9.8939 | C161: 1527.6
A162: 160 | B162: 9.8958 | C162: 1528.4
A163: 161 | B163: 9.8976 | C163: 1529.2
A164: 162 | B164: 9.8996 | C164: 1530
A165: 163 | B165: 9.9015 | C165: 1530.9
A166: 164 | B166: 9.9034 | C166: 1531.7
A167: 165 | B167: 9.9053 | C167: 1532.5
A168: 166 | B168: 9.9072 | C168: 1533.3
A169: 167 | B169: 9.9092 | C169: 1534.2
A170: 168 | B170: 9.9111 | C170: 1535
A171: 169 | B171: 9.9131 | C171: 1535.8
A172: 170 | B172: 9.915 | C172: 1536.6
A173: 171 | B173: 9.917 | C173: 1537.5
A174: 172 | B174: 9.919 | C174: 1538.3
A175: 173 | B175: 9.921 | C175: 1539.1
A176: 174 | B176: 9.923 | C176: 1539.9
A177: 175 | B177: 9.925 | C177: 1540.8
A178: 176 | B178: 9.927 | C178: 1541.6
A179: 177 | B179: 9.929 | C179: 1542.4
A180: 178 | B180: 9.931 | C180: 1543.2
A181: 179 | B181: 9.933 | C181: 1544.1
A182: 180 | B182: 9.935 | C182: 1544.9
A183: 181 | B183: 9.9371 | C183: 1545.7
A184: 182 | B184: 9.9391 | C184: 1546.5
A185: 183 | B185: 9.9412 | C185: 1547.4
A186: 184 | B186: 9.9432 | C186: 1548.2
A187: 185 | B187: 9.9453 | C187: 1549
A188: 186 | B188: 9.9474 | C188: 1549.9
A189: 187 | B189: 9.9494 | C189: 1550.7
A190: 188 | B190: 9.9515 | C190: 1551.5
A191: 189 | B191: 9.9536 | C191: 1552.3
A192: 190 | B192: 9.9557 | C192: 1553.2
A193: 191 | B193: 9.9578 | C193: 1554
A194: 192 | B194: 9.9599 | C194: 1554.8
A195: 193 | B195: 9.962 | C195: 1555.6
A196: 194 | B196: 9.9642 | C196: 1556.5
A197: 195 | B197: 9.9663 | C197: 1557.3
A198: 196 | B198: 9.9684 | C198: 1558.1
A199: 197 | B199: 9.9706 | C199: 1558.9
A200: 198 | B200: 9.9727 | C200: 1559.8
... 303 more rows
